Cogmind - Beta 11.1 *** ADVENTURER MODE // 2022.05.25 @ 22:15:31 Player: Fgdfgfthgr Result: Escaped singularity! Performance ------------- Evolutions (9) 4500 Regions Visited (36) 7200 Robots Destroyed (710) 3550 Value Destroyed (38096) 38096 Prototype IDs (304) 6080 Alien Tech Used (14) 2800 Bonus (43891) 43891 TOTAL SCORE: 106117 Bonus ------- High Alert Combat Kills 3009 Follower Combat Kills 2494 Entered Garrisons 600 Used RIF Installer 1500 Network Hubs Disabled 600 Aligned with FarCom 300 Met Zhirov 300 A7 Reached Mainframe 300 Acquired SGEMP 2000 Delivered SGEMP 2000 Met MAIN.C 5000 Hacked MAIN.C 300 Destroyed MAIN.C Shell 5000 Zhirov Destroyed MAIN.C 3000 Met Architect 300 Destroyed A8 300 Destroyed A6 400 Destroyed Architect 15000 Win 3000 Friendly Fire -1512 Cogmind --------- Core Integrity 118/1600 Matter 194/300 Energy 99/100 System Corruption 1% Temperature Cool (0) Movement Core (50) Location Near Former Tau Ceti IV Parts ------- > --- POWER (3) -------- (None) > --- PROPULSION (6) --- (None) > --- UTILITY (14) ----- (None) > --- WEAPON (2) ------- (None) > --- INVENTORY (5) ---- Microwarp Drive Null Cannon Guided Micro-nuke Launcher Peak State ------------ > --- POWER ------------ Zero-point Reactor Zero-point Reactor Zero-point Reactor > --- PROPULSION ------- Myomer Exoskeleton Myomer Exoskeleton > --- UTILITY ---------- Advanced Power Amplifier High-capacity Storage Unit Experimental Optical Array Advanced Targeting Computer Experimental Core Analyzer Improved Armor Integrity Analyzer Heavy Regenerative Plating Graphene Brace Thermal Barrier AEGIS Remote Shield Phase Redirector Microwarp Drive > --- WEAPON ----------- Heavy Quantum Rifle Null Cannon > --- INVENTORY -------- Improved Quantum Reactor Improved Quantum Reactor Experimental Energy Well Experimental Energy Well Experimental Matter Compressor Experimental Sensor Array Advanced Particle Charger Quantum Capacitor Experimental Phase Shifter Beam Splitter Experimental EM Disruption Field Advanced Hardlight Generator High-powered Transdimensional Reconstructor Spacefold Activator Core Cannon Guided Micro-nuke Launcher [Rating: 273] Favorites ----------- Power Heavy Antimatter Reactor Engine Heavy Ion Engine Power Core Reinforced Fission Core Reactor Heavy Antimatter Reactor Propulsion Enhanced Biometal Leg Treads Light Treads Leg Enhanced Biometal Leg Utility Huge Storage Unit Device Experimental Sensor Array Storage Huge Storage Unit Processor Improved Armor Integrity Analyzer Hackware Experimental Hacking Suite Protection Centrium Medium Armor Plating Artifact Phase Redirector Weapon Heavy Quantum Rifle Energy Gun Heavy Quantum Rifle Energy Cannon Null Cannon Ballistic Gun Enhanced Autogun Ballistic Cannon Hardcell Cannon Launcher Improved Grenade Launcher Special Weapon Improved Plasma Cutter Impact Weapon Core Stripper Special Melee Weapon Datajack Build | -11 -10 -10 -9 -9 -9 -8 -8 -7 -7 -7 -7 -7 -6 -6 -6 -6 -6 -5 -5 -5 -5 -5 -5 -4 -4 -4 -4 -4 -3 -3 -2 -2 -2 -1 -1 -1 ------- Run | Scr Mat Min Mat Min Exi Min Mat Fac Was Fac Gar Sto Fac Ext Cet Arc Hub Fac Was Fac Upp Upp Zhi Pro Fac Gar Fac Gar Res Tes Res Qua Sec Acc Com Ac0 Slots Evolved 18 | . . . 2 . . . 2 2 . . . . 2 . . . . 2 . . . . . . 2 . . . 2 . 2 . . 2 . . Power 2 | . . . . . . . . . . . . . . . . . . 1 . . . . . . . . . . . . . . . 1 . . Propulsion 4 | . . . 1 . . . 1 . . . . . . . . . . 1 . . . . . . . . . . 1 . . . . . . . Utility 12 | . . . 1 . . . 1 2 . . . . 2 . . . . . . . . . . . 2 . . . 1 . 2 . . 1 . . Weapon . | . . . . . . . . . . . . . . . . . . . . . . . . . . . . . . . . . . . . . Parts Attached 889 | . 11 1 25 7 18 3 35 40 10 2 6 10 7 15 4 3 38 7 4 28 7 17 7 . 23 20 91 10 31 73 37 60 90 55 87 7 Power 45 | . 1 . 2 . 1 . 2 1 2 . . 1 . 1 . . 2 1 . . . . 2 . . 1 5 . . 5 2 5 3 1 7 . Engine 8 | . 1 . 2 . 1 . 2 1 1 . . . . . . . . . . . . . . . . . . . . . . . . . . . Core 4 | . . . . . . . . . . . . . . 1 . . . . . . . . . . . . 3 . . . . . . . . . Reactor 33 | . . . . . . . . . 1 . . 1 . . . . 2 1 . . . . 2 . . 1 2 . . 5 2 5 3 1 7 . Propulsion 70 | . 3 . 6 . 4 3 9 4 2 . . 2 . 3 1 . 6 2 . 4 . . . . 2 . 10 . 3 3 1 2 . . . . Treads 23 | . 3 . 6 . 4 . . . 2 . . 2 . 3 1 . 2 . . . . . . . . . . . . . . . . . . . Leg 47 | . . . . . . 3 9 4 . . . . . . . . 4 2 . 4 . . . . 2 . 10 . 3 3 1 2 . . . . Wheel . | . . . . . . . . . . . . . . . . . . . . . . . . . . . . . . . . . . . . . Hover . | . . . . . . . . . . . . . . . . . . . . . . . . . . . . . . . . . . . . . Flight . | . . . . . . . . . . . . . . . . . . . . . . . . . . . . . . . . . . . . . Utility 557 | . 3 . 6 1 4 . 14 13 4 . 1 . 4 9 1 2 17 4 3 14 6 13 5 . 17 10 71 6 26 44 29 39 84 43 58 6 Device 435 | . 2 . 4 . 1 . 4 2 1 . . . 2 3 . . 11 3 3 10 6 10 1 . 12 9 55 5 23 42 27 29 77 38 51 4 Storage 11 | . 1 . 1 . . . . . . . . . . . . . . . . . . . 1 . . 1 . . . . 1 2 . 1 2 1 Processor 21 | . . . . . . . 2 2 . . . . . . . . 1 1 . 1 . . . . 1 . 2 . 1 1 . 1 1 4 3 . Hackware 7 | . . . . . . . 1 . . . . . . . . 2 . . . 1 . . . . 2 . . . . . . 1 . . . . Protection 76 | . . . 1 1 3 . 7 9 3 . 1 . 2 6 1 . 5 . . 2 . 3 3 . 2 . 14 1 2 1 1 6 2 . . . Artifact 7 | . . . . . . . . . . . . . . . . . . . . . . . . . . . . . . . . . 4 . 2 1 Weapon 217 | . 4 1 11 6 9 . 10 22 2 2 5 7 3 2 2 1 13 . 1 10 1 4 . . 4 9 5 4 2 21 5 14 3 11 22 1 Energy Gun 42 | . 2 . . 1 . . 4 9 1 . . 6 1 2 . . 1 . . . . . . . . . . . . 3 . 1 1 3 7 . Energy Cannon 75 | . . . 5 3 2 . . 2 . 1 2 . . . . . . . . 1 1 2 . . 2 3 1 2 2 15 3 9 2 5 11 1 Ballistic Gun 32 | . . . 1 . 4 . 4 5 1 1 1 . 1 . 2 1 6 . 1 4 . . . . . . . . . . . . . . . . Ballistic Cannon 23 | . . 1 2 . . . . 1 . . . . . . . . 2 . . 3 . . . . 1 3 3 1 . 3 . 3 . . . . Launcher 35 | . 2 . 3 2 2 . 2 2 . . 2 1 1 . . . 4 . . 2 . 2 . . 1 3 1 1 . . 2 . . 2 . . Special Weapon 6 | . . . . . . . . 1 . . . . . . . . . . . . . . . . . . . . . . . . . 1 4 . Impact Weapon 1 | . . . . . . . . . . . . . . . . . . . . . . . . . . . . . . . . 1 . . . . Slashing Weapon . | . . . . . . . . . . . . . . . . . . . . . . . . . . . . . . . . . . . . . Piercing Weapon . | . . . . . . . . . . . . . . . . . . . . . . . . . . . . . . . . . . . . . Special Melee Weapon 3 | . . . . . 1 . . 2 . . . . . . . . . . . . . . . . . . . . . . . . . . . . Unidentified Prototypes 74 | . . . 3 . . 1 2 2 . . . 1 . . 3 . 5 . . 3 . . 4 . 3 . 6 . . 15 2 13 8 3 . . Corrupted Parts 5 | . . . . . . . . . . . . 2 . . . . 2 . . . . . . . . . . . . . . 1 . . . . System Corruption 29 | . . . . . . . . . . . . 10 . . . . 13 . . . . . . . . . . . . . . 6 . . . . Parts Lost 37 | . . . . 2 10 1 4 6 . . . . 1 4 . . 1 . . 1 . . . . . . 3 . . . 1 1 1 . 1 . Power 3 | . . . . . 1 . . . . . . . . 1 . . . . . . . . . . . . 1 . . . . . . . . . Propulsion 9 | . . . . . 4 1 1 2 . . . . . 1 . . . . . . . . . . . . . . . . . . . . . . Utility 18 | . . . . 1 3 . 2 3 . . . . 1 2 . . 1 . . . . . . . . . 1 . . . 1 1 1 . 1 . Weapon 7 | . . . . 1 2 . 1 1 . . . . . . . . . . . 1 . . . . . . 1 . . . . . . . . . Highest Loss Streak 4 | . . . . 2 4 1 2 3 . . . . 1 2 . . 1 . . 1 . . . . . . 1 . . . 1 1 1 . 1 . To Critical Strikes 6 | . . . . . 6 . . . . . . . . . . . . . . . . . . . . . . . . . . . . . . . Average Slot Usage (%) 89 | . 96 100 99 99 96 98 98 99 96 84 84 84 84 85 86 86 74 99 100 99 100 99 99 100 98 99 99 99 99 97 89 79 76 75 75 67 Engine 2 | . 14 14 11 11 11 11 8 7 5 . . . . . . . . . . . . . . . . . . . . . . . . . . . Reactor 6 | . . . . . . . . . 1 7 7 7 6 3 . . 4 10 11 11 11 11 11 11 10 10 9 10 9 9 8 7 8 12 11 11 Treads 6 | . 24 28 33 33 33 7 . . 2 15 15 15 13 13 13 13 11 . . . . . . . . . . . . . . . . . . . Leg 14 | . 3 . . . . 24 35 29 24 . . . . . . . 3 29 29 29 29 29 29 29 26 26 25 26 28 26 16 8 8 8 8 7 Device 17 | . 11 14 21 15 10 11 8 7 7 7 7 7 18 15 13 13 8 11 11 11 11 10 11 11 14 15 14 15 20 19 25 23 25 27 26 16 Storage 6 | . 14 14 11 11 11 11 9 7 7 7 7 7 6 6 6 6 6 5 5 5 5 5 5 5 5 5 5 5 4 4 4 3 4 4 4 7 Processor 12 | . . . . . . . . 9 15 15 15 15 13 13 13 13 13 21 23 23 23 23 23 23 21 21 21 21 19 19 17 17 13 12 13 14 Hackware 2 | . . . . . . . 9 4 . . . . . . . 3 1 . . . . . . . 5 5 5 5 4 4 4 3 1 . . . Protection 6 | . . . . 6 10 11 8 14 14 15 15 15 12 17 20 15 7 6 5 4 5 4 4 5 4 5 5 4 2 3 3 4 4 4 4 3 Energy Gun 2 | . 11 13 . 6 . . 7 4 7 2 . 9 8 6 1 . . 5 5 . . . . . . . . . . . . . 3 3 3 1 Energy Cannon 4 | . . . 10 11 4 11 1 2 . 4 6 1 . . . . . . . . 4 4 5 5 4 4 4 4 4 7 7 6 4 3 2 3 Ballistic Gun 2 | . 14 14 . . 10 11 9 7 7 7 7 2 3 6 11 13 10 . 4 4 . . . . . . . . . . . . . . . . Ballistic Cannon 2 | . . . 10 4 . . . . . . . . . . . . 1 5 . 4 5 5 5 5 5 4 5 4 4 1 . . . . . . Naked Turns 9 | . . . . . . . . . . . . . . . . . . . . . . . . . . . . . . . . . . . . 9 Heaviest Build 202 | 11 29 30 102 105 105 104 104 116 118 118 122 125 123 128 134 134 160 147 139 144 143 149 142 140 157 155 155 154 157 166 168 180 196 197 202 156 Greatest Support 200 | 20 40 40 63 63 63 70 90 90 140 140 140 140 140 140 150 150 150 150 150 150 150 150 150 150 150 150 150 150 180 190 190 200 200 200 200 200 Greatest Overweight (x) 4 | . . . 1 1 1 2 1 1 1 . . . . . . . 4 . . . . . . . 1 1 1 1 . . 1 . . . 1 . Average Overweight (x) . | . . . 1 1 1 1 1 1 . . . . . . . . . . . . . . . . . . . . . . . . . . . . Largest Inventory Capacity 25 | . 15 15 25 25 25 25 25 25 25 25 25 25 25 25 25 25 25 25 25 25 25 25 25 25 25 25 25 25 25 25 25 25 25 25 25 20 Average Capacity 24 | . 14 15 25 25 25 25 25 25 25 25 25 25 25 25 25 25 25 25 25 25 25 25 25 25 25 25 25 25 25 25 25 24 25 25 23 18 Most Carried 25 | . 15 15 25 25 25 25 25 25 25 25 25 25 25 25 25 25 25 23 25 25 25 25 25 25 25 25 25 25 25 25 25 25 25 25 25 20 Average Carried 23 | . 11 14 24 23 21 24 24 23 23 25 25 24 24 24 24 24 24 22 24 24 25 24 24 24 24 24 24 24 24 24 23 23 24 24 22 17 Final Capacity 25 | 8 15 15 25 25 25 25 25 25 25 25 25 25 25 25 25 25 25 25 25 25 25 25 25 25 25 25 25 25 25 25 25 25 25 25 20 5 Final Carried 25 | 6 15 15 25 23 23 25 24 21 25 25 25 25 24 25 24 25 24 23 25 25 25 24 25 25 25 25 25 25 25 25 25 25 25 25 18 5 Class Distribution -------------------- 36% | Scavenger-Mutant 18% | Generator-Mutant 15% | Mutant 12% | Scavenger-Skirmisher 9% | Hacker-Mutant 5% | Hacker-Skirmisher Dominant Class ---------------- Mutant | -10/Materials Mutant | -10/Mines Mutant | -9/Materials Mutant | -9/Mines Scavenger-Mutant | -9/Exiles Scavenger-Mutant | -8/Mines Hacker-Mutant | -8/Materials Hacker-Mutant | -7/Factory Scavenger-Mutant | -7/Waste Scavenger-Mutant | -7/Factory Scavenger-Mutant | -7/Garrison Scavenger-Mutant | -7/Storage Scavenger-Mutant | -6/Factory Scavenger-Mutant | -6/Extension Scavenger-Mutant | -6/Cetus Scavenger-Mutant | -6/Archives Scavenger-Mutant | -6/Hub_04(d) Scavenger-Mutant | -5/Factory Scavenger-Mutant | -5/Waste Scavenger-Skirmisher | -5/Factory Scavenger-Skirmisher | -5/Upper Caves Scavenger-Skirmisher | -5/Upper Caves Scavenger-Skirmisher | -5/Zhirov Scavenger-Skirmisher | -4/Proximity Caves Scavenger-Mutant | -4/Factory Scavenger-Mutant | -4/Garrison Scavenger-Skirmisher | -4/Factory Scavenger-Mutant | -4/Garrison Scavenger-Mutant | -3/Research Scavenger-Mutant | -3/Testing Scavenger-Skirmisher | -2/Research Hacker-Skirmisher | -2/Quarantine Hacker-Skirmisher | -2/Section 7 Generator-Mutant | -1/Access Generator-Mutant | -1/Command Generator-Mutant | -1/Access_0 Resources | -11 -10 -10 -9 -9 -9 -8 -8 -7 -7 -7 -7 -7 -6 -6 -6 -6 -6 -5 -5 -5 -5 -5 -5 -4 -4 -4 -4 -4 -3 -3 -2 -2 -2 -1 -1 -1 ----------- Run | Scr Mat Min Mat Min Exi Min Mat Fac Was Fac Gar Sto Fac Ext Cet Arc Hub Fac Was Fac Upp Upp Zhi Pro Fac Gar Fac Gar Res Tes Res Qua Sec Acc Com Ac0 Matter Collected 19369 | 200 205 1 713 152 677 100 978 667 327 104 166 272 236 340 112 374 1874 80 370 686 209 333 . 104 390 1141 1760 747 704 934 636 1256 987 646 884 4 Remotely . | . . . . . . . . . . . . . . . . . . . . . . . . . . . . . . . . . . . . . Salvage Created 34657 | . 491 26 1538 414 358 296 2961 846 1463 245 289 416 971 442 235 271 3726 136 1715 924 96 371 . 31 394 894 1686 799 595 1600 526 1315 3634 2168 2734 51 Parts 1563 | . 41 3 98 28 49 23 131 38 39 17 22 13 37 17 7 15 186 16 38 36 8 14 . 1 21 34 71 34 25 65 32 71 142 72 119 . Haulers Intercepted 27 | . 1 . 6 . . . 5 1 . 1 . 4 1 . . . . . . 2 . 1 . . . . 2 . 1 . . . . 2 . . Recyclers Shooed 6 | . . . 2 1 . . 2 1 . . . . . . . . . . . . . . . . . . . . . . . . . . . . Parts Field Recycled . | . . . . . . . . . . . . . . . . . . . . . . . . . . . . . . . . . . . . . Retrieved Matter . | . . . . . . . . . . . . . . . . . . . . . . . . . . . . . . . . . . . . . Parts Self-Destructed 14 | . . . . . . . . . . . . . . . . . . . . . 5 9 . . . . . . . . . . . . . . Prevented 2 | . . . . . . . . . . . . . . . . . . . . . . 2 . . . . . . . . . . . . . . Kills | -11 -10 -10 -9 -9 -9 -8 -8 -7 -7 -7 -7 -7 -6 -6 -6 -6 -6 -5 -5 -5 -5 -5 -5 -4 -4 -4 -4 -4 -3 -3 -2 -2 -2 -1 -1 -1 ------- Run | Scr Mat Min Mat Min Exi Min Mat Fac Was Fac Gar Sto Fac Ext Cet Arc Hub Fac Was Fac Upp Upp Zhi Pro Fac Gar Fac Gar Res Tes Res Qua Sec Acc Com Ac0 Combat Hostiles Destroyed 555 | . 16 . 38 16 6 7 40 12 6 3 15 4 14 9 2 1 46 1 6 16 3 9 . . 6 21 24 19 10 30 13 20 54 44 41 3 Guns 137 | . 7 . . 2 2 3 30 6 6 2 2 2 11 9 2 1 35 1 5 3 . . . . . . . . . . . . 8 . . . Cannons 281 | . . . 32 7 . 4 4 4 . 1 2 . . . . . 3 . 1 9 3 7 . . 3 13 19 12 9 25 7 11 37 35 30 3 AOE 81 | . 9 . 6 7 4 . 4 . . . 11 . 2 . . . 6 . . 4 . 2 . . 1 7 3 4 . . 5 . . 6 . . Classes Destroyed 31 | . 7 . 2 1 3 . 3 1 1 . . . 1 1 1 . . . . . 1 . . 1 . 1 . . 1 4 . 1 . . 1 . Worker 30 | . 1 1 1 1 . 1 4 . . 1 . . 1 . . . 8 2 . . . . . . . . 4 . 1 . 2 1 . . 1 . Builder 12 | . 1 . 1 1 . 1 1 . . 1 . . . . . . 4 1 . . . . . . . . . . . . . . . 1 . . Tunneler 6 | . 1 . . . . 2 . . . . . . . . . . 2 1 . . . . . . . . . . . . . . . . . . Hauler 27 | . 1 . 6 . . . 5 1 . 1 . 4 1 . . . . . . 2 . 1 . . . . 2 . 1 . . . . 2 . . Recycler 10 | . . . 1 1 . . 4 1 . . . . . . . . 2 . . . . . . . . . . . . . . . 1 . . . Carrier 2 | . . . . . . . . . . . . . . . 1 . . . . . . . . . . . . . . 1 . . . . . . Minesweeper 1 | . . . . . . . . . . . . . . . . . . . . . . . . 1 . . . . . . . . . . . . Operator 10 | . . . . . . . 1 . . . . . . . . 6 . . . . . . . . . . 2 . . 1 . . . . . . Turret 1 | . . . . . 1 . . . . . . . . . . . . . . . . . . . . . . . . . . . . . . . Watcher 48 | . 3 . 3 . . . 4 1 . . . . . . 1 . 2 . . 1 . . . . . 1 6 . 1 1 3 1 5 12 3 . Swarmer 91 | . 9 . 12 11 . 4 . . . . 12 . . 3 1 . 3 . . 5 . . . . . 4 . 9 . . 5 . . 4 9 . Saboteur 2 | . . . . . . . . . . . . . . . . . . . . . . . . . . . . . . 2 . . . . . . Grunt 184 | . 7 . 17 3 . 3 27 3 . 2 3 2 9 1 . . 14 . . 7 . 5 . . 3 9 10 7 . 11 . 3 20 16 2 . Brawler 11 | . . . . 2 . . . . . . . . . . 1 . 3 . . . . 1 . . . . 1 1 . . . . 1 1 . . Duelist 14 | . . . . . . . 1 1 . . . . 1 1 . . 3 . . . . . . . . 4 . 1 . 1 . . 1 . . . Protector 4 | . . . . . . . . . . . . . 1 . . . 3 . . . . . . . . . . . . . . . . . . . Researcher 2 | . . . . . . . . . . . . . . . . . . . . . . . . . . . . . . 2 . . . . . . Sentry 67 | . . . 9 . . . 9 3 . 1 . 2 1 3 . 1 6 . . 3 . . . . 1 1 5 . 3 . . . 10 5 4 . Specialist 3 | . . . . . . . . . . . . . . . . . . . . . . . . . . 1 . . 2 . . . . . . . Hunter 38 | . . . . . . . 3 2 . . . . 1 . . . 2 1 . . . 1 . . . 2 2 . 2 4 4 5 3 2 4 . Programmer 78 | . . . . . . . . 3 . . . . 1 . . . 2 . . 2 1 . . . 2 . 7 . 2 9 4 3 16 15 11 . Heavy 4 | . . . . . . . . . . . . . . . . . . . . . . . . . . . . . 1 . 1 . 1 1 . . Behemoth 6 | . . . . . . . . . . . . . . 1 . . 1 . . . 1 . . . . 1 . 1 . . . . 1 . . . Compactor 12 | . . . . . . . . . 6 . . . . . . . . . 6 . . . . . . . . . . . . . . . . . Quarantine Guard 8 | . . . . . . . . . . . . . . . . . . . . . . . . . . . . . . . . 8 . . . . S7 Guard 1 | . . . . . . . . . . . . . . . . . . . . . . . . . . . . . . . . . 1 . . . M Guard 2 | . . . . . . . . . . . . . . . . . . . . . . . . . . . . . . . . . . . 2 . Lightning 9 | . . . . . . . . . . . . . . . . . 9 . . . . . . . . . . . . . . . . . . . Combat Programmer 1 | . . . . . . . . . . . . . . . . . . . . . . . . . . . . . . . . . . . 1 . Striker 4 | . . . . . . . . . . . . . . . . . . . . . . . . . . . . . . 2 . . . . 2 . Executioner 3 | . . . . . . . . . . . . . . . . . . . . . . . . . . . . . . . . . . . 3 . Alpha 7 4 | . . . . . . . . . . . . . . . . . . . . . . . . . . . . . . 1 . . 2 . 1 . Fortress 1 | . . . . . . . . . . . . . . . . . . . . . . . . . . . . . . . . 1 . . . . Zionite 8 | . . . . . 8 . . . . . . . . . . . . . . . . . . . . . . . . . . . . . . . Decomposer 1 | . . . . . . . . . . . . . . . . . . . . . . . . 1 . . . . . . . . . . . . Master Thief 3 | . . . . . . . . . . . . . . . . . . . . . 1 2 . . . . . . . . . . . . . . Assembled 5 | . . . . . 5 . . . . . . . . . . . . . . . . . . . . . . . . . . . . . . . Savage 1 | . . . . . . . . . . . . . . . . . . . . . . . . . . . . . . . . . . . 1 . Best Kill Streak 11 | . 9 1 5 4 8 4 6 4 1 2 11 1 7 3 3 2 11 2 4 5 1 3 . 1 3 5 6 5 3 9 6 3 4 5 7 1 Combat Bots Only 11 | . 6 . 5 4 5 4 4 4 1 2 11 1 6 3 2 1 9 1 4 5 1 3 . . 3 5 5 5 3 9 5 3 4 5 6 1 Max Kills in Single Turn 5 | . 2 1 4 4 2 2 3 1 1 1 3 1 2 1 1 1 5 1 1 2 1 1 . 1 1 2 2 3 1 2 3 2 2 3 1 1 Gunslinging 1 | . 1 . . . . . . . . . . . 1 . . . 1 . . . . . . . . . . . . . . . . . . . Exploded 4 | . 2 . 4 4 2 . 1 . . . 3 . 1 . . . 1 . . 2 . 1 . . 1 2 2 3 . . 3 . . 3 . . Melee . | . . . . . . . . . . . . . . . . . . . . . . . . . . . . . . . . . . . . . Uniques/NPCs Destroyed 8 | . . . . . 4 . . . . . . . . . . . . . . . . . . . . . . . . . . . . . 1 3 8R-AWN (-9/Exiles) EX-HEX (-9/Exiles) EX-BIN (-9/Exiles) EX-DEC (-9/Exiles) MAIN.C Shell (-1/Command) A6 (-1/Access_0) A8 (-1/Access_0) Architect (-1/Access_0) Combat | -11 -10 -10 -9 -9 -9 -8 -8 -7 -7 -7 -7 -7 -6 -6 -6 -6 -6 -5 -5 -5 -5 -5 -5 -4 -4 -4 -4 -4 -3 -3 -2 -2 -2 -1 -1 -1 -------- Run | Scr Mat Min Mat Min Exi Min Mat Fac Was Fac Gar Sto Fac Ext Cet Arc Hub Fac Was Fac Upp Upp Zhi Pro Fac Gar Fac Gar Res Tes Res Qua Sec Acc Com Ac0 Damage Taken 18990 | . 184 . 357 213 1269 356 1686 1435 . 83 512 409 917 1094 121 118 2409 33 18 299 203 203 . 38 174 301 661 179 394 403 440 542 569 89 1051 2230 Core 2223 | . 45 . 27 29 96 28 158 156 . . 14 47 12 127 . . 142 7 . 26 55 21 . 27 20 53 90 11 16 49 17 26 112 3 86 723 Absorbed by Shields 8749 | . . . 240 104 . . . . . . . . . 656 29 54 478 24 . 174 48 78 . . 126 418 734 550 572 815 248 480 1433 279 563 646 Reduced by Siege Mode 261 | . . . . . . . . . . . . . 97 75 . 3 86 . . . . . . . . . . . . . . . . . . . Redirected to Core 41 | . . . . . . . . . . . . . . . . . . . . . . . . . . . . . . . . . 41 . . . Redirected to Shielding 149 | . . . . . . . . 101 . . . . . . . . 48 . . . . . . . . . . . . . . . . . . . Regen/Repaired (Parts) 5905 | . . . 11 . . . 457 . . . . . . . . . . 20 . 142 . . . . 857 . 1230 . . 245 482 1307 787 60 307 . Core Remaining (%) 72 | 100 . 82 . . . 55 71 . . . . 69 . . . . 66 . . . . . . 86 . . . 84 . 95 . . 85 . . 7 Volleys Fired 2342 | . 29 1 85 23 94 19 158 71 30 16 20 48 46 59 9 43 162 13 40 45 22 27 1 9 17 69 168 39 65 101 50 81 230 193 232 27 Largest 2 | . 2 2 2 2 2 2 2 2 2 2 2 2 2 2 2 2 2 2 2 2 2 2 1 1 2 2 2 2 2 2 2 2 2 2 2 1 Hottest 300 | . 60 60 107 143 91 91 93 93 60 93 93 93 89 89 89 63 87 137 137 147 147 147 90 90 170 170 170 170 170 180 180 180 210 300 300 300 Shots Fired 3729 | . 54 2 165 46 178 38 307 125 53 35 29 91 86 111 18 86 303 16 66 78 29 48 1 9 25 113 260 67 125 152 78 128 354 194 232 27 Gun 1576 | . 47 2 17 7 114 19 277 101 53 25 14 76 82 111 18 86 258 13 56 35 2 . . . . . . . . . . 3 122 1 37 . Cannon 2005 | . . . 145 37 53 19 21 18 . 10 11 15 . . . . 29 3 10 38 27 43 1 9 20 92 256 65 125 152 76 125 232 189 157 27 Launcher 108 | . 7 . 3 2 11 . 9 4 . . 4 . 4 . . . 16 . . 5 . 5 . . 5 21 4 2 . . 2 . . 4 . . Special 40 | . . . . . . . . 2 . . . . . . . . . . . . . . . . . . . . . . . . . . 38 . Kinetic 1471 | . 25 1 98 11 114 19 149 59 28 17 14 26 37 52 13 86 287 3 40 72 11 25 . 6 9 46 111 28 60 23 . 1 . . . . Thermal 2047 | . . . 64 33 34 19 149 60 25 18 11 65 45 59 5 . . 13 26 1 18 18 1 3 11 46 145 30 65 117 76 106 354 190 213 27 Explosive 72 | . 7 . 3 2 11 . . 1 . . 4 . . . . . 6 . . 5 . . . . . 21 4 2 . . 2 . . 4 . . Electromagnetic 134 | . 22 1 . . 19 . 9 3 . . . . 4 . . . 10 . . . . 5 . . 5 . . 7 . 12 . 21 . . 16 . Robot Hit Streak 69 | . 13 7 21 24 23 18 39 24 30 17 13 49 24 49 25 29 43 6 18 24 11 19 . 24 33 28 25 29 29 27 32 35 42 17 69 33 Robot Miss Streak 3 | . 2 . 2 2 2 1 2 2 2 2 2 1 1 1 . 1 2 2 2 1 1 1 . . 1 1 2 2 3 1 2 1 2 3 1 1 Penetration Max 2 | . . . . . . . . . . . . . . . 1 . 2 1 . 1 . 1 . . . . . . . . . . . . . . Secondary Targets 10 | . 1 . . . . . . . . . . . 3 1 2 . 3 . . . . . . . . . . . . . . . . . . . Max Gunslinging Chain 1 | . 1 . . . . . . . . . . . 1 1 1 . 1 . . . . . . . . . . . . . . . . . . . Capacitor 459 | . . . . . . . . . . . . . . . . . . . . . . . . . . . . . . . . . 63 188 192 16 Shots Hit Robots 2801 | . 39 1 124 32 153 31 255 99 46 29 22 58 78 95 18 75 255 11 53 61 14 40 . 5 18 67 150 51 96 110 46 91 251 93 213 21 Core Hits 1199 | . 38 1 56 18 44 15 101 31 16 10 23 16 43 33 8 25 137 7 13 40 7 21 . 3 10 47 59 27 28 45 19 32 93 50 77 6 Critical Kills 82 | . . . . . . . 2 1 5 . . 1 . . 1 1 30 . 5 1 . . . . . 1 2 2 1 5 1 2 9 5 7 . Critical Parts Destroyed 56 | . . . . . 1 . . . 4 . . . 2 1 1 1 31 1 3 1 . . . . . . . . . . . . . . . 10 Critical Strikes 236 | . 2 . 6 1 2 . 17 2 15 . . 5 7 6 3 2 65 1 12 6 2 4 . . . 3 8 5 9 10 1 4 9 5 12 12 Burn 34 | . . . . 1 . . 15 1 2 . . 4 5 5 1 . . . . . . . . . . . . . . . . . . . . . Meltdown 38 | . . . . . . . 1 1 . . . 1 . . . . . . . . . . . . . 1 2 2 1 5 1 2 9 5 7 . Destroy 116 | . . . . . 2 . 1 . 13 . . . 2 1 2 2 65 1 12 2 . . . . . . . . . . . . . . 1 12 Blast 37 | . . . 6 . . . . . . . . . . . . . . . . 4 2 4 . . . 2 6 2 8 2 . 1 . . . . Corrupt 10 | . 2 . . . . . . . . . . . . . . . . . . . . . . . . . . 1 . 3 . 1 . . 3 . Sever 1 | . . . . . . . . . . . . . . . . . . . . . . . . . . . . . . . . . . . 1 . Melee Attacks 10 | . . . . . 4 . . 3 . . . . . . . . . . . . . . . . . . . . . . . 3 . . . . Kinetic 3 | . . . . . . . . . . . . . . . . . . . . . . . . . . . . . . . . 3 . . . . Impact . | . . . . . . . . . . . . . . . . . . . . . . . . . . . . . . . . . . . . . Slashing . | . . . . . . . . . . . . . . . . . . . . . . . . . . . . . . . . . . . . . Piercing . | . . . . . . . . . . . . . . . . . . . . . . . . . . . . . . . . . . . . . Sneak Attacks 7 | . . . . . 4 . . 3 . . . . . . . . . . . . . . . . . . . . . . . . . . . . Combat Hostiles . | . . . . . . . . . . . . . . . . . . . . . . . . . . . . . . . . . . . . . Follow-up Attacks . | . . . . . . . . . . . . . . . . . . . . . . . . . . . . . . . . . . . . . Damage Inflicted 112142 | . 1172 15 2967 1153 2713 608 5231 1927 868 479 1190 1144 1729 1804 349 1434 6593 386 1233 1908 528 1588 . 126 828 4439 6963 2204 3761 6218 4050 5050 14624 10057 13103 3700 Guns 27041 | . 421 15 126 91 1470 223 3993 1255 868 336 182 858 1342 1774 349 1431 4299 336 1090 627 19 . . . . . . . . . . 150 4095 37 1654 . Cannons 71273 | . . . 2509 621 618 385 366 349 . 143 184 286 . . . . 350 50 143 970 468 1309 . 126 526 2497 5554 1782 3761 6218 3116 4900 10514 8959 10869 3700 Explosions 12895 | . 751 . 323 421 625 . 842 289 . . 824 . 379 . . . 1842 . . 311 41 279 . . 302 1942 1342 422 . . 934 . . 1026 . . Melee . | . . . . . . . . . . . . . . . . . . . . . . . . . . . . . . . . . . . . . Ramming 353 | . . . 9 20 . . 30 34 . . . . 8 30 . 3 102 . . . . . . . . . 67 . . . . . 15 35 . . Kinetic 25614 | . 116 . 1341 154 1470 223 2006 685 474 201 182 213 598 919 265 1431 4649 50 577 1597 285 711 . 126 235 1304 2516 698 1872 666 . 50 . . . . Thermal 71755 | . 65 . 1294 558 595 385 2353 919 394 278 184 931 744 855 84 . 71 336 656 . 243 679 . . 291 1193 3337 859 1889 5206 3116 4299 14609 8996 12636 3700 Explosive 9353 | . 686 . 323 421 625 . 265 . . . 824 . . . . . 540 . . 311 . . . . . 1942 1043 422 . . 934 . . 1017 . . Electromagnetic 5067 | . 305 15 . . 23 . 577 289 . . . . 379 . . . 1231 . . . . 198 . . 302 . . 225 . 346 . 701 . 9 467 . Impact . | . . . . . . . . . . . . . . . . . . . . . . . . . . . . . . . . . . . . . Slashing . | . . . . . . . . . . . . . . . . . . . . . . . . . . . . . . . . . . . . . Piercing . | . . . . . . . . . . . . . . . . . . . . . . . . . . . . . . . . . . . . . Highest Corruption 41 | . . . . 4 4 4 . 5 29 29 29 41 . . . . 13 . . . . . . . . . 2 . 1 . . 6 1 . 2 1 Average Corruption 6 | . . . . 4 4 4 . 3 17 29 29 30 . . . . 12 . . . . . . . . . 1 . 1 . . 3 1 . 1 1 Corruption Purged 17 | . . . . . . . . 5 . . . . . . . . . . . . . . . . . . 2 . 1 . . 6 . . 3 . Corruption Blocked . | . . . . . . . . . . . . . . . . . . . . . . . . . . . . . . . . . . . . . Effects 234 | . . . . 21 35 5 . 23 21 13 19 35 . . . . 2 . . . . . . . . . 35 . . . . 2 17 . 5 1 Message Errors 49 | . . . . 4 7 1 . 10 1 1 2 6 . . . . . . . . . . . . . . 14 . . . . . 3 . . . Matter Fused 46 | . . . . . 8 3 . 3 6 3 5 7 . . . . . . . . . . . . . . 6 . . . . 1 3 . 1 . Heat Flow Errors 37 | . . . . 4 4 . . 5 3 2 3 6 . . . . . . . . . . . . . . 5 . . . . . 3 . 2 . Energy Discharges 18 | . . . . 3 1 . . 1 3 1 1 3 . . . . . . . . . . . . . . 2 . . . . . 2 . 1 . Parts Rejected 2 | . . . . . . . . . . . . . . . . . . . . . . . . . . . . . . . . 1 1 . . . Data Loss (minor) 43 | . . . . 5 9 1 . 1 6 . 5 8 . . . . . . . . . . . . . . 4 . . . . . 3 . . 1 Data Loss (major) 14 | . . . . . 2 . . 1 1 3 . 3 . . . . 1 . . . . . . . . . 2 . . . . . 1 . . . Misfires 11 | . . . . 3 2 . . 1 . 3 . . . . . . . . . . . . . . . . 1 . . . . . 1 . . . Alerts 2 | . . . . 1 1 . . . . . . . . . . . . . . . . . . . . . . . . . . . . . . . Misdirections 2 | . . . . . . . . . . . . 1 . . . . 1 . . . . . . . . . . . . . . . . . . . Weapon Failures 10 | . . . . 1 1 . . 1 1 . 3 1 . . . . . . . . . . . . . . 1 . . . . . . . 1 . Overload Shots 17 | . . . . . . . . 5 2 . . 3 . 7 . . . . . . . . . . . . . . . . . . . . . . Effects 1 | . . . . . . . . . 1 . . . . . . . . . . . . . . . . . . . . . . . . . . . Energy Bleed 1 | . . . . . . . . . 1 . . . . . . . . . . . . . . . . . . . . . . . . . . . Overflow Damage 6801 | . 2 . 52 26 68 3 26 . . . 54 6 . 10 . . 81 . . 14 . 24 . . 7 112 343 125 93 586 364 403 733 1473 1482 714 Projectiles 6209 | . . . 52 9 10 3 . . . . . 6 . . . . . . . . . 24 . . 7 51 288 9 93 586 317 403 733 1422 1482 714 Explosions 555 | . 2 . . 17 58 . 26 . . . 54 . . . . . 72 . . 14 . . . . . 61 48 116 . . 47 . . 40 . . Melee 37 | . . . . . . . . . . . . . . 10 . . 9 . . . . . . . . . 7 . . . . . . 11 . . Knockbacks 68 | . . . 6 . . . 1 1 . . . . . . . . 8 . . 4 . 4 . 2 3 9 11 1 10 7 . . 1 . . . Impact 3 | . . . . . . . 1 1 . . . . . . . . . . . . . . . . . . . . . . . . 1 . . . Kinetic 61 | . . . 5 . . . . . . . . . . . . . 6 . . 4 . 4 . 2 3 8 11 1 10 7 . . . . . . Secondary 4 | . . . 1 . . . . . . . . . . . . . 2 . . . . . . . . 1 . . . . . . . . . . Self-Inflicted Damage 319 | . 53 . . 64 . . . . . . 47 . . . . . 104 . . . . 49 . . . 2 . . . . . . . . . . Shots 17 | . 5 . . 3 . . . . . . 2 . . . . . 4 . . . . 2 . . . 1 . . . . . . . . . . Rammed 9 | . . . 1 3 . . . . . . . . 1 1 . 1 2 . . . . . . . . . . . . . . . . . . . Targets Rammed 25 | . . . 1 3 . . 4 3 . . . . 1 1 . 1 5 . . . . . . . . . 2 . . . . . 1 3 . . Kicked 16 | . . . . . . . 4 3 . . . . . . . . 3 . . . . . . . . . 2 . . . . . 1 3 . . Crushed . | . . . . . . . . . . . . . . . . . . . . . . . . . . . . . . . . . . . . . Highest Temperature 363 | . 40 . 45 198 346 16 108 235 225 159 146 280 4 295 . . 161 . . 12 87 63 . . 45 126 363 193 120 164 . 78 141 138 138 118 Average Temperature 55 | . 19 . 17 73 118 11 24 80 103 40 68 57 2 169 . . 84 . . 7 44 23 . . 16 41 43 72 35 48 . 29 72 70 78 80 Received Heat Transfer 4683 | . 48 . 172 18 40 225 1053 261 . 57 135 159 433 421 9 6 885 . . 94 39 44 . 9 59 75 95 72 18 98 10 22 88 2 36 . Effects 6 | . . . . . . . . . . . . 1 . 2 . . . . . . . . . . . . 3 . . . . . . . . . Energy Bleed 3 | . . . . . . . . . . . . 1 . 2 . . . . . . . . . . . . . . . . . . . . . . Interference 3 | . . . . . . . . . . . . . . . . . . . . . . . . . . . 3 . . . . . . . . . Siege Activations 24 | . . . . . . . . . . . 1 1 4 5 . 2 11 . . . . . . . . . . . . . . . . . . . Total Turns 465 | . . . . . . . . . . . 7 1 94 80 . 10 273 . . . . . . . . . . . . . . . . . . . Longest Duration 101 | . . . . . . . . . . . 7 1 41 37 . 5 101 . . . . . . . . . . . . . . . . . . . Robots Corrupted 18 | . . . . . . . 1 1 . . . . 1 . . . 2 . . . . . . . 2 . . 1 . . . 6 . . 4 . Combat Hostiles 18 | . . . . . . . 1 1 . . . . 1 . . . 2 . . . . . . . 2 . . 1 . . . 6 . . 4 . Parts Fried 47 | . 1 . . . . . 4 . . . . . 4 . . . 20 . . . . . . . 1 . . 1 . . . 10 2 . 4 . Impact Corruptions 4 | . . . . . . . . . . . . . . 1 . . 1 . . . . . . . . . 1 . . . . . . 1 . . Robots Melted 40 | . . . . . . . 1 1 . . . 2 . . . . . . . . . . . . . 1 2 2 1 6 1 2 9 5 7 . Combat Hostiles 37 | . . . . . . . 1 1 . . . 2 . . . . . . . . . . . . . 1 2 2 1 5 1 2 9 3 7 . Parts Melted 107 | . . . 4 3 4 4 12 6 . . . 4 2 3 . . . 1 . . . . . . . 1 4 2 1 10 1 3 25 6 11 . Heat Transferred 58689 | . 100 . 2220 1036 1073 666 6068 1887 925 518 333 2035 1961 2220 259 . 50 407 851 . 50 50 . . 185 1221 3234 888 1887 3476 1953 2950 10100 4537 5549 . Parts Sabotaged . | . . . . . . . . . . . . . . . . . . . . . . . . . . . . . . . . . . . . . Parts Stolen 2 | . . . . . . . . . . . . . . . . . . . . . . 2 . . . . . . . . . . . . . . Parts Stripped . | . . . . . . . . . . . . . . . . . . . . . . . . . . . . . . . . . . . . . Power Chain Reactions 7 | . 2 . . . . . . . . . . . . . . . 3 . . . 1 1 . . . . . . . . . . . . . . Missiles Intercepted 7 | . . . . . . . . . . . . . . . . . . . . . . . . . . . . . . . . . . . 7 . Alert | -11 -10 -10 -9 -9 -9 -8 -8 -7 -7 -7 -7 -7 -6 -6 -6 -6 -6 -5 -5 -5 -5 -5 -5 -4 -4 -4 -4 -4 -3 -3 -2 -2 -2 -1 -1 -1 ------- Run | Scr Mat Min Mat Min Exi Min Mat Fac Was Fac Gar Sto Fac Ext Cet Arc Hub Fac Was Fac Upp Upp Zhi Pro Fac Gar Fac Gar Res Tes Res Qua Sec Acc Com Ac0 Peak Influence 1250 | . 444 80 528 274 . 178 307 247 3 131 532 669 500 414 430 259 1250 688 209 413 . . . . 181 773 718 445 399 721 426 436 486 868 361 . Initial 527 | . . 80 1 . . . 58 47 . . 80 223 224 173 115 144 22 527 201 115 . . . . 11 8 351 5 217 133 28 109 . 255 63 . Average 260 | . 232 55 265 78 . 86 130 57 1 44 395 474 324 264 286 195 677 611 191 207 . . . . 52 539 309 338 271 435 259 183 212 387 189 . Maximum Alert Level 4 | . 2 . 2 1 . . 1 1 . . 2 2 2 2 2 1 4 2 1 2 . . . . . 3 3 2 1 3 2 2 2 3 1 . Low Security (%) 44 | . 34 100 33 89 . 100 70 96 100 100 16 . . 25 50 35 9 . 74 49 . . . . 100 11 39 14 16 23 15 47 44 5 67 . Level 1 35 | . 53 . 47 10 . . 29 3 . . 19 23 71 68 7 64 13 . 25 49 . . . . . 23 27 27 83 16 76 47 43 48 32 . Level 2 17 | . 11 . 18 . . . . . . . 64 76 28 5 42 . 37 100 . 1 . . . . . 16 30 57 . 55 7 4 11 42 . . Level 3 2 | . . . . . . . . . . . . . . . . . 22 . . . . . . . . 47 2 . . 5 . . . 2 . . Level 4 . | . . . . . . . . . . . . . . . . . 17 . . . . . . . . . . . . . . . . . . . Level 5 . | . . . . . . . . . . . . . . . . . . . . . . . . . . . . . . . . . . . . . High Security . | . . . . . . . . . . . . . . . . . . . . . . . . . . . . . . . . . . . . . Max Security . | . . . . . . . . . . . . . . . . . . . . . . . . . . . . . . . . . . . . . Squads Dispatched 102 | . 3 1 5 . . . 8 3 . 1 . 3 2 4 . . 11 1 . 3 . . . . 4 . 9 . 2 9 2 1 9 11 10 . Investigation 18 | . 3 1 2 . . . 4 . . . . 1 . 1 . . . . . . . . . . . . 1 . . . . . . 2 3 . Extermination 40 | . . . . . . . . 3 . . . . . . . . 2 1 . 1 . . . . 2 . 4 . 1 4 2 1 6 6 7 . Reinforcement 29 | . . . 3 . . . 4 . . 1 . 2 1 2 . . 3 . . 2 . . . . 1 . 1 . 1 2 . . 3 3 . . Assault 8 | . . . . . . . . . . . . . 1 1 . . 3 . . . . . . . . . . . . 3 . . . . . . Garrison 7 | . . . . . . . . . . . . . . . . . 3 . . . . . . . 1 . 3 . . . . . . . . . Intercept . | . . . . . . . . . . . . . . . . . . . . . . . . . . . . . . . . . . . . . Searches Triggered . | . . . . . . . . . . . . . . . . . . . . . . . . . . . . . . . . . . . . . Construction Impeded 4 | . . . . . . . 2 . . . . . . 1 . . 1 . . . . . . . . . . . . . . . . . . . Haulers Reinforced 5 | . . . . . . . . . . 1 . 1 1 . . . . . . 2 . . . . . . . . . . . . . . . . Active Scanning Responses . | . . . . . . . . . . . . . . . . . . . . . . . . . . . . . . . . . . . . . Cargo Convoy Interrupts 1 | . . . . . . . . . . . . . . . . . . . . . . . . . . . . . 1 . . . . . . . Stealth | -11 -10 -10 -9 -9 -9 -8 -8 -7 -7 -7 -7 -7 -6 -6 -6 -6 -6 -5 -5 -5 -5 -5 -5 -4 -4 -4 -4 -4 -3 -3 -2 -2 -2 -1 -1 -1 --------- Run | Scr Mat Min Mat Min Exi Min Mat Fac Was Fac Gar Sto Fac Ext Cet Arc Hub Fac Was Fac Upp Upp Zhi Pro Fac Gar Fac Gar Res Tes Res Qua Sec Acc Com Ac0 Distress Signals 26 | . 1 . 2 . . . 1 2 . . . . . 2 1 . 3 . . 1 . . . . 1 . 1 . 1 1 . . 2 4 3 . Communications Jammed 95 | . . . . . . . . . . . . . 13 . . . 3 . . . . . . . . . . . 34 4 11 . 21 9 . . Distress Signals 68 | . . . . . . . . . . . . . 10 . . . 3 . . . . . . . . . . . 21 4 . . 21 9 . . Times Spotted 882 | . 21 . 56 16 37 7 54 20 7 3 15 19 16 42 12 20 80 3 6 26 4 15 . 3 14 25 42 18 16 41 21 22 79 62 52 8 Peak Tracking Total 10 | . 7 . 6 4 10 4 7 8 2 1 10 5 5 6 5 1 7 2 2 5 1 5 . 5 7 6 5 6 3 6 6 3 7 6 4 5 Tactical Retreats 53 | . . . 1 1 6 . 1 2 1 . . . 1 1 . . 6 . . 1 1 2 . 1 4 3 2 . . 1 . . 8 4 6 . Traps | -11 -10 -10 -9 -9 -9 -8 -8 -7 -7 -7 -7 -7 -6 -6 -6 -6 -6 -5 -5 -5 -5 -5 -5 -4 -4 -4 -4 -4 -3 -3 -2 -2 -2 -1 -1 -1 ------- Run | Scr Mat Min Mat Min Exi Min Mat Fac Was Fac Gar Sto Fac Ext Cet Arc Hub Fac Was Fac Upp Upp Zhi Pro Fac Gar Fac Gar Res Tes Res Qua Sec Acc Com Ac0 Traps Triggered 27 | . 1 . . . . . 1 2 . . . 2 . . . . 2 1 . 2 . . . . . 4 2 6 . 1 . . . 3 . . Indirectly 2 | . . . . . . . . . . . . . . . . . 2 . . . . . . . . . . . . . . . . . . . Trap Hack Attempts . | . . . . . . . . . . . . . . . . . . . . . . . . . . . . . . . . . . . . . Triggered . | . . . . . . . . . . . . . . . . . . . . . . . . . . . . . . . . . . . . . Disarmed . | . . . . . . . . . . . . . . . . . . . . . . . . . . . . . . . . . . . . . Reprogrammed 24 | . . . . . . . . . . . . . . . . . . . . . . . . . 9 . 7 . . . . . . . 8 . Reused 8 | . . . . . . . . . . . . . . . . . . . . . . . . . 2 . 2 . . . . . . . 4 . Traps Extracted . | . . . . . . . . . . . . . . . . . . . . . . . . . . . . . . . . . . . . . Installed . | . . . . . . . . . . . . . . . . . . . . . . . . . . . . . . . . . . . . . Triggered 15 | . . . . . . . . . . . . . . . . . . . . . . . . . 2 . 2 . 1 . . . 1 . 9 . Exploded 3 | . . . . . 3 . . . . . . . . . . . . . . . . . . . . . . . . . . . . . . . Machines | -11 -10 -10 -9 -9 -9 -8 -8 -7 -7 -7 -7 -7 -6 -6 -6 -6 -6 -5 -5 -5 -5 -5 -5 -4 -4 -4 -4 -4 -3 -3 -2 -2 -2 -1 -1 -1 ---------- Run | Scr Mat Min Mat Min Exi Min Mat Fac Was Fac Gar Sto Fac Ext Cet Arc Hub Fac Was Fac Upp Upp Zhi Pro Fac Gar Fac Gar Res Tes Res Qua Sec Acc Com Ac0 Machines Disabled 133 | . 2 . . 1 4 . 2 1 . . . 3 . 7 2 3 22 . . 6 . . 1 . . 3 24 2 1 12 4 9 12 5 3 4 Max in Single Turn 12 | . 1 . . 1 1 . 1 1 . . . 1 . 1 . 1 8 . . 2 . . 1 . . 1 12 1 1 1 1 1 1 1 1 1 Garrison Access 16 | . . . . . . . 1 2 . . . 1 2 . . . 1 . . . . . . . . . 1 . 1 1 . . 1 5 . . Garrison Relay 1 | . . . . . . . . . . . . . . . . . . . . . . . . . . 1 . . . . . . . . . . Network Hub 3 | . . . . . . . . . . . . . . . . . 3 . . . . . . . . . . . . . . . . . . . Machines Sabotaged . | . . . . . . . . . . . . . . . . . . . . . . . . . . . . . . . . . . . . . Garrisons Compromised 1 | . . . . . . . . . . . . . . . . . . . . . . . . . . . . . 1 . . . . . . . Overloaded Fab Kills . | . . . . . . . . . . . . . . . . . . . . . . . . . . . . . . . . . . . . . Hacking | -11 -10 -10 -9 -9 -9 -8 -8 -7 -7 -7 -7 -7 -6 -6 -6 -6 -6 -5 -5 -5 -5 -5 -5 -4 -4 -4 -4 -4 -3 -3 -2 -2 -2 -1 -1 -1 --------- Run | Scr Mat Min Mat Min Exi Min Mat Fac Was Fac Gar Sto Fac Ext Cet Arc Hub Fac Was Fac Upp Upp Zhi Pro Fac Gar Fac Gar Res Tes Res Qua Sec Acc Com Ac0 Machines Accessed 195 | . 9 1 14 . 2 1 17 7 . 2 . 4 6 9 1 . 2 3 . 7 . 1 4 . 9 . 17 . 5 10 6 15 9 24 10 . Terminals 118 | . 7 . 9 . . 1 10 3 . 1 . 3 2 9 1 . 1 2 . 4 . . . . 3 . 7 . 3 5 4 11 7 15 10 . Fabricators 16 | . . . . . . . . 2 . . . . 1 . . . . . . 2 . . . . 2 . 2 . . 2 1 . . 4 . . Repair Stations 14 | . . . 1 . . . 2 . . . . . . . . . . 1 . 1 . . . . 1 . 3 . . 2 1 2 . . . . Recycling Units 10 | . 2 . 2 . . . 2 . . . . . 1 . . . . . . . . . . . 1 . 1 . 1 . . . . . . . Scanalyzers 11 | . . . 2 . . . 2 . . . . . . . . . . . . . . . . . 1 . 2 . . 1 . 2 1 . . . Garrison Access 18 | . . . . . . . 1 2 . 1 . 1 2 . . . 1 . . . . . . . 1 . 2 . 1 . . . 1 5 . . Total Hacks 844 | . 24 1 33 . 2 3 86 19 . 5 . 6 9 30 3 . 4 16 . 41 . 1 17 . 57 . 115 . 33 60 50 67 48 75 39 . Successful 509 | . 15 1 20 . 2 3 59 7 . 2 . 3 6 19 1 . 3 9 . 27 . 1 17 . 34 . 80 . 20 31 32 41 30 30 16 . Failed 329 | . 8 . 13 . . . 27 12 . 3 . 3 3 11 2 . 1 7 . 13 . . . . 23 . 34 . 12 28 18 25 18 45 23 . Catastrophic 39 | . . . . . . . 3 1 . 1 . 1 1 . . . . 2 . 1 . . . . 3 . 3 . . 3 1 6 2 6 5 . Database Lockouts 6 | . 1 . . . . . . . . . . . . . . . . . . 1 . . . . . . 1 . 1 1 . 1 . . . . Manual 403 | . 17 . 10 . 2 2 38 9 . 2 . 3 5 15 1 . 1 4 . 29 . . . . 34 . 53 . 26 27 26 25 20 36 18 . Terminals 560 | . 22 . 21 . . 3 58 6 . 4 . 5 3 30 3 . 3 12 . 21 . . . . 25 . 69 . 25 36 24 52 45 54 39 . Fabricators 84 | . . . . . . . . 9 . . . . 3 . . . . . . 12 . . . . 16 . 8 . . 9 11 . . 16 . . Repair Stations 102 | . . . 2 . . . 14 . . . . . . . . . . 4 . 8 . . . . 11 . 25 . . 14 15 9 . . . . Recycling Units 23 | . 2 . 5 . . . 3 . . . . . 1 . . . . . . . . . . . 3 . 2 . 7 . . . . . . . Scanalyzers 30 | . . . 5 . . . 10 . . . . . . . . . . . . . . . . . 1 . 5 . . 1 . 6 2 . . . Garrison Access 24 | . . . . . . . 1 4 . 1 . 1 2 . . . 1 . . . . . . . 1 . 6 . 1 . . . 1 5 . . Terminal Hacks 244 | . 10 1 7 . 2 3 30 1 . . . 2 1 16 1 . 1 3 . 11 . 1 17 . 9 . 32 . 9 16 7 20 21 13 10 . Record 12 | . . . . . 1 . . . . . . . . . . . . . . . . 1 5 . . . . . . . . 4 1 . . . Part Schematic 8 | . . . . . . . . . . . . . . 1 . . . . . . . . 4 . . . 2 . . 1 . . . . . . Robot Schematic 1 | . . . . . . . . . . . . . . . . . . . . . . . . . . . 1 . . . . . . . . . Robot Analysis 18 | . 3 . 1 . . . . . . . . . . . . . . . . . . . 4 . . . 2 . 3 . . 2 2 . 1 . Prototype ID Bank 57 | . 4 . 2 . . . 11 . . . . 1 . 2 . . . . . 3 . . 4 . 1 . 6 . 3 5 1 5 3 4 2 . Open Door 10 | . . 1 . . . . . . . . . . 1 3 1 . . . . . . . . . . . . . . . . . . 3 1 . Level Access Points 7 | . . . 1 . . 1 1 . . . . . . . . . . . . . . . . . . . . . . 1 1 1 . . 1 . Branch Access Points 9 | . . . . . . 1 1 1 . . . . . . . . . . . 1 . . . . . . 1 . 1 1 1 1 . . . . Emergency Access Points 7 | . . . 1 . . . 1 . . . . . . . . . . 1 . 1 . . . . . . 1 . . . . 1 1 . . . Terminal Index 10 | . 1 . . . . . 1 . . . . . . 1 . . . . . 1 . . . . . . 1 . 1 1 1 1 1 . . . Fabricator Index 1 | . . . . . . . . . . . . . . . . . . . . . . . . . . . 1 . . . . . . . . . Repair Station Index 4 | . . . . . . . 1 . . . . . . . . . . . . . . . . . 1 . 1 . . . . . 1 . . . Recycling Unit Index 1 | . . . . . . . 1 . . . . . . . . . . . . . . . . . . . . . . . . . . . . . Scanalyzer Index 2 | . . . 1 . . . 1 . . . . . . . . . . . . . . . . . . . . . . . . . . . . . Garrison Index 2 | . . . . . . . . . . . . . . . . . . . . . . . . . 1 . 1 . . . . . . . . . Alert Level 4 | . . . . . . . 2 . . . . . . 2 . . . . . . . . . . . . . . . . . . . . . . Unreport Threat 14 | . . . . . . . 1 . . . . . . 1 . . . . . . . . . . . . 4 . . 4 . . 2 2 . . Locate Traps 23 | . 2 . 1 . . . 3 . . . . 1 . 3 . . 1 2 . 2 . . . . 2 . 3 . . . 1 . 1 . 1 . Reprogram Traps 6 | . . . . . . . . . . . . . . . . . . . . . . . . . 2 . 2 . . . . . . . 2 . Dispatch Records 2 | . . . . . . 1 . . . . . . . . . . . . . . . . . . . . . . . . . . 1 . . . Security Status 2 | . . . . . . . . . . . . . . . . . . . . . . . . . 1 . . . . . . . . 1 . . Recall Reinforcements 4 | . . . . . . . 1 . . . . . . 1 . . . . . . . . . . . . . . . . . . 1 1 . . Hauler Manifests 3 | . . . . . . . . . . . . . . . . . . . . . . . . . . . 1 . . . . . 2 . . . Registered Prototypes 2 | . . . . . . . 1 . . . . . . . . . . . . . . . . . . . . . . . . . . . 1 . Zone Layout 33 | . . . . . . . 4 . . . . . . 2 . . . . . 3 . . . . 1 . 5 . 1 3 2 5 5 2 . . EX-Prototype ID Bank 1 | . . . . . 1 . . . . . . . . . . . . . . . . . . . . . . . . . . . . . . . Disengage Seal 1 | . . . . . . . . . . . . . . . . . . . . . . . . . . . . . . . . . . . 1 . Fabricator Hacks 17 | . . . . . . . . 1 . . . . . . . . . . . 2 . . . . 2 . 4 . . 1 2 . . 5 . . Network Status 9 | . . . . . . . . 1 . . . . . . . . . . . 2 . . . . 1 . 2 . . 1 1 . . 1 . . Load Schematic 5 | . . . . . . . . . . . . . . . . . . . . . . . . . 1 . 1 . . . 1 . . 2 . . Build 3 | . . . . . . . . . . . . . . . . . . . . . . . . . . . 1 . . . . . . 2 . . Repair Station Hacks 79 | . . . 2 . . . 11 . . . . . . . . . . 3 . 5 . . . . 8 . 20 . . 7 14 9 . . . . Scan Component 42 | . . . 1 . . . 6 . . . . . . . . . . 2 . 3 . . . . 4 . 10 . . 4 7 5 . . . . Repair 37 | . . . 1 . . . 5 . . . . . . . . . . 1 . 2 . . . . 4 . 10 . . 3 7 4 . . . . Recycling Unit Hacks 3 | . . . 1 . . . 1 . . . . . . . . . . . . . . . . . . . 1 . . . . . . . . . Retrieve Matter 1 | . . . . . . . . . . . . . . . . . . . . . . . . . . . 1 . . . . . . . . . Retrieve Components 2 | . . . 1 . . . 1 . . . . . . . . . . . . . . . . . . . . . . . . . . . . . Scanalyzer 25 | . . . 5 . . . 9 . . . . . . . . . . . . . . . . . . . 5 . . . . 4 2 . . . Insert Component 17 | . . . 3 . . . 4 . . . . . . . . . . . . . . . . . . . 4 . . . . 4 2 . . . Analyze 8 | . . . 2 . . . 5 . . . . . . . . . . . . . . . . . . . 1 . . . . . . . . . Garrison Access Hacks 19 | . . . . . . . 1 2 . 1 . 1 2 . . . 1 . . . . . . . 1 . 3 . 1 . . . 1 5 . . Unlock Access 4 | . . . . . . . . . . 1 . . . . . . . . . . . . . . 1 . 2 . . . . . . . . . Seal Access 15 | . . . . . . . 1 2 . . . 1 2 . . . 1 . . . . . . . . . 1 . 1 . . . 1 5 . . Unauthorized Hacks 122 | . 5 . 5 . . . 7 3 . 1 . . 3 3 . . 1 3 . 9 . . . . 14 . 15 . 10 7 9 8 6 7 6 . Terminals 70 | . 3 . 3 . . . 5 . . 1 . . . 3 . . 1 3 . 1 . . . . 3 . 11 . 6 1 4 8 6 5 6 . Track 4 | . . . . . . . . . . . . . . . . . . . . . . . . . . . 2 . 1 . . 1 . . . . Assimilate 5 | . . . . . . . . . . . . . . . . . . . . . . . . . . . 2 . 1 . . . . 1 1 . Botnet 42 | . 2 . 2 . . . 3 . . 1 . . . 2 . . 1 2 . 1 . . . . 2 . 4 . 2 1 3 6 3 3 4 . Detonate 5 | . . . . . . . 1 . . . . . . . . . . . . . . . . . . . 2 . 1 . 1 . . . . . Disrupt 4 | . 1 . 1 . . . . . . . . . . . . . . . . . . . . . . . 1 . . . . . 1 . . . Operators 10 | . . . . . . . 1 . . . . . . 1 . . . 1 . . . . . . 1 . . . 1 . . 1 2 1 1 . Fabricators 33 | . . . . . . . . 3 . . . . 2 . . . . . . 8 . . . . 9 . . . . 5 4 . . 2 . . Report 6 | . . . . . . . . . . . . . 1 . . . . . . 1 . . . . 2 . . . . 1 1 . . . . . Prioritize 3 | . . . . . . . . . . . . . . . . . . . . 1 . . . . 1 . . . . 1 . . . . . . Liberate 12 | . . . . . . . . 2 . . . . 1 . . . . . . 2 . . . . 2 . . . . 2 1 . . 2 . . Fabnet 7 | . . . . . . . . 1 . . . . . . . . . . . 2 . . . . 2 . . . . 1 1 . . . . . Haulers 5 | . . . . . . . . . . . . . . . . . . . . 2 . . . . 2 . . . . . 1 . . . . . Repair Stations 2 | . . . . . . . . . . . . . . . . . . . . . . . . . . . 1 . . . 1 . . . . . Mechanics 2 | . . . . . . . . . . . . . . . . . . . . . . . . . . . 1 . . . 1 . . . . . Recycling Units 12 | . 2 . 2 . . . 2 . . . . . 1 . . . . . . . . . . . 1 . . . 4 . . . . . . . Monitor 1 | . . . . . . . . . . . . . . . . . . . . . . . . . . . . . 1 . . . . . . . Reject 1 | . . . . . . . . . . . . . . . . . . . . . . . . . . . . . 1 . . . . . . . Recyclers 1 | . . . . . . . . . . . . . . . . . . . . . . . . . . . . . 1 . . . . . . . Mask 3 | . . . . . . . . . . . . . 1 . . . . . . . . . . . 1 . . . 1 . . . . . . . Tunnel 6 | . 2 . 2 . . . 2 . . . . . . . . . . . . . . . . . . . . . . . . . . . . . Scanalyzers 2 | . . . . . . . . . . . . . . . . . . . . . . . . . 1 . . . . 1 . . . . . . Researchers 2 | . . . . . . . . . . . . . . . . . . . . . . . . . 1 . . . . 1 . . . . . . Garrison Access 3 | . . . . . . . . . . . . . . . . . . . . . . . . . . . 3 . . . . . . . . . Broadcast 1 | . . . . . . . . . . . . . . . . . . . . . . . . . . . 1 . . . . . . . . . Redirect 1 | . . . . . . . . . . . . . . . . . . . . . . . . . . . 1 . . . . . . . . . Intercept 1 | . . . . . . . . . . . . . . . . . . . . . . . . . . . 1 . . . . . . . . . Data Cores Recovered . | . . . . . . . . . . . . . . . . . . . . . . . . . . . . . . . . . . . . . Used . | . . . . . . . . . . . . . . . . . . . . . . . . . . . . . . . . . . . . . Hacking Detections 135 | . 5 . 13 . . . 13 5 . 1 . 3 4 8 1 . 1 2 . 4 . . . . 6 . 11 . 3 8 5 11 8 16 7 . Full Trace Events 7 | . . . . . . . 1 . . . . . . 1 . . . . . . . . . . . . 1 . . . . . . 2 2 . Feedback Events 1 | . . . . . . . . . . . . . . . . . . . . . . . . . . . . . . . . . . . 1 . Corruption 1 | . . . . . . . . . . . . . . . . . . . . . . . . . . . . . . . . . . . 1 . Feedback Blocked . | . . . . . . . . . . . . . . . . . . . . . . . . . . . . . . . . . . . . . Robot Schematics Acquired 5 | . . . . . . . . . . . . . . . . . . . . . . . . . . . 1 . . 4 . . . . . . Robots Built . | . . . . . . . . . . . . . . . . . . . . . . . . . . . . . . . . . . . . . Authchips . | . . . . . . . . . . . . . . . . . . . . . . . . . . . . . . . . . . . . . Time . | . . . . . . . . . . . . . . . . . . . . . . . . . . . . . . . . . . . . . Total Robot Build Rating . | . . . . . . . . . . . . . . . . . . . . . . . . . . . . . . . . . . . . . Part Schematics Acquired 16 | . . . 2 . . . 3 . . . . . . 1 . . . . . . . . 4 . . . 3 . . 3 . . . . . . Parts Built 3 | . . . . . . . . . . . . . . . . . . . . . . . . . . . 1 . . . . . . 2 . . Authchips . | . . . . . . . . . . . . . . . . . . . . . . . . . . . . . . . . . . . . . Time 408 | . . . . . . . . . . . . . . . . . . . . . . . . . . . 222 . . . . . . 186 . . Total Part Build Rating 23 | . . . . . . . . . . . . . . . . . . . . . . . . . . . 9 . . . . . . 14 . . Parts Repaired 37 | . . . 1 . . . 5 . . . . . . . . . . 1 . 2 . . . . 4 . 10 . . 3 7 4 . . . . Time 2630 | . . . 108 . . . 420 . . . . . . . . . . 31 . 210 . . . . 432 . 514 . . 134 637 144 . . . . Parts Recycled . | . . . . . . . . . . . . . . . . . . . . . . . . . . . . . . . . . . . . . Recycled Matter . | . . . . . . . . . . . . . . . . . . . . . . . . . . . . . . . . . . . . . Retrieved Matter . | . . . . . . . . . . . . . . . . . . . . . . . . . . . . . . . . . . . . . Retrieved Components 19 | . . . 9 . . . 10 . . . . . . . . . . . . . . . . . . . . . . . . . . . . . Parts Scanalyzed 6 | . . . 2 . . . 3 . . . . . . . . . . . . . . . . . . . 1 . . . . . . . . . Part Schematics Acquired 6 | . . . 2 . . . 3 . . . . . . . . . . . . . . . . . . . 1 . . . . . . . . . Parts Damaged 2 | . . . . . . . 1 . . . . . . . . . . . . . . . . . . . 1 . . . . . . . . . Bothacking | -11 -10 -10 -9 -9 -9 -8 -8 -7 -7 -7 -7 -7 -6 -6 -6 -6 -6 -5 -5 -5 -5 -5 -5 -4 -4 -4 -4 -4 -3 -3 -2 -2 -2 -1 -1 -1 ------------ Run | Scr Mat Min Mat Min Exi Min Mat Fac Was Fac Gar Sto Fac Ext Cet Arc Hub Fac Was Fac Upp Upp Zhi Pro Fac Gar Fac Gar Res Tes Res Qua Sec Acc Com Ac0 Used RIF Installer 3 | . . . . . . . . . . . 1 . . . . . . . . . . . . . . 1 . 1 . . . . . . . . Zone Cloak 1 | . . . . . . . . . . . . . . . . . . . . . . . . . . 1 . . . . . . . . . . Structural Interface 1 | . . . . . . . . . . . . . . . . . . . . . . . . . . . . 1 . . . . . . . . Robots Hacked 26 | . . . . . 4 . . 3 . . . . . 1 . . . . . 1 . . . . . 2 1 1 2 1 1 . 5 . 4 . Non-combat 6 | . . . . . 3 . . 3 . . . . . . . . . . . . . . . . . . . . . . . . . . . . Combat 20 | . . . . . 1 . . . . . . . . 1 . . . . . 1 . . . . . 2 1 1 2 1 1 . 5 . 4 . Robot Hacks Applied 9 | . . . . . 4 . . 4 . . . . . . . . . . . . . . . . . . . . . . . . . . 1 . parse_system 5 | . . . . . 4 . . . . . . . . . . . . . . . . . . . . . . . . . . . . . 1 . no_distress 1 | . . . . . . . . 1 . . . . . . . . . . . . . . . . . . . . . . . . . . . . find_chute 3 | . . . . . . . . 3 . . . . . . . . . . . . . . . . . . . . . . . . . . . . Manual 1 | . . . . . . . . . . . . . . . . . . . . . . . . . . . . . . . . . . . 1 . Relay Couplers Released 5 | . . . . . . . . . . . . . . . . . 1 . . . . . . . . 4 . . . . . . . . . . Machine Destruction 5 | . . . . . . . . . . . . . . . . . 1 . . . . . . . . 4 . . . . . . . . . . Fabnet Peak Effective % 8 | . . . . . . . . . . . . . 3 3 3 3 3 1 1 1 1 1 1 6 6 6 6 6 8 8 5 5 5 4 4 4 Autooverrided 18 | . . . . . . . . . . . . . . 1 . . . . . 1 . . . . . 2 1 1 2 1 1 . 5 . 3 . Robots Rewired 12 | . . . . . . . . . . . . . . 10 . . . 1 . . . . . . 1 . . . . . . . . . . . Allies Hacked 2 | . . . . . . . . . . . . . . . . . . . . 2 . . . . . . . . . . . . . . . . Hacks Repelled . | . . . . . . . . . . . . . . . . . . . . . . . . . . . . . . . . . . . . . Allies | -11 -10 -10 -9 -9 -9 -8 -8 -7 -7 -7 -7 -7 -6 -6 -6 -6 -6 -5 -5 -5 -5 -5 -5 -4 -4 -4 -4 -4 -3 -3 -2 -2 -2 -1 -1 -1 -------- Run | Scr Mat Min Mat Min Exi Min Mat Fac Was Fac Gar Sto Fac Ext Cet Arc Hub Fac Was Fac Upp Upp Zhi Pro Fac Gar Fac Gar Res Tes Res Qua Sec Acc Com Ac0 Total Allies 67 | . . 1 . . . . . 2 . . . 10 . 15 . . . 1 1 7 . . . . 3 2 2 1 3 1 1 . 5 5 7 . Largest Group 10 | . . 1 1 . . . . 2 . . . 10 1 9 8 5 2 1 2 6 . . . . 2 2 1 1 2 1 1 . 1 3 2 . Highest-Rated Group 401 | . . 31 31 . . . . 64 . . . 173 16 401 375 271 65 41 72 180 . . . . 112 103 54 47 101 82 69 . 82 374 127 . Highest-Rated Ally 159 | . . 31 31 . . . . 32 . . . 29 16 159 159 152 39 41 41 43 . . . . 56 56 54 47 64 82 69 . 82 131 82 . Total Orders . | . . . . . . . . . . . . . . . . . . . . . . . . . . . . . . . . . . . . . Ally Attacks 464 | . . . . . . . . 2 . . . 72 2 141 62 24 6 1 26 25 . . . . 6 19 . 5 5 4 . . 18 40 6 . Total Damage 9982 | . . . . . . . . 78 . . . 896 16 2672 1099 441 89 . 1028 457 . . . . 235 569 . 174 154 28 . . 348 1606 92 . Kills 72 | . . . . . . . . . . . . 15 . 27 9 3 2 . . 1 . . . . . 3 . . 1 . . . 1 10 . . Allies Corrupted 4 | . . . . . . . . . . . . 2 . . . . . . . 1 . . . . . . . . 1 . . . . . . . Allies Melted . | . . . . . . . . . . . . . . . . . . . . . . . . . . . . . . . . . . . . . Intel | -11 -10 -10 -9 -9 -9 -8 -8 -7 -7 -7 -7 -7 -6 -6 -6 -6 -6 -5 -5 -5 -5 -5 -5 -4 -4 -4 -4 -4 -3 -3 -2 -2 -2 -1 -1 -1 ------- Run | Scr Mat Min Mat Min Exi Min Mat Fac Was Fac Gar Sto Fac Ext Cet Arc Hub Fac Was Fac Upp Upp Zhi Pro Fac Gar Fac Gar Res Tes Res Qua Sec Acc Com Ac0 Robot Analysis Total 18 | . 3 . 1 . . . . . . . . . . . . . . . . . . . 4 . . . 2 . 3 . . 2 2 . 1 . Derelict Logs Recovered 5 | . . 1 . 2 . . . . . . . . . . . . . . . . 1 . . 1 . . . . . . . . . . . . Drone Launches . | . . . . . . . . . . . . . . . . . . . . . . . . . . . . . . . . . . . . . Drone Recoveries . | . . . . . . . . . . . . . . . . . . . . . . . . . . . . . . . . . . . . . Exploration | -11 -10 -10 -9 -9 -9 -8 -8 -7 -7 -7 -7 -7 -6 -6 -6 -6 -6 -5 -5 -5 -5 -5 -5 -4 -4 -4 -4 -4 -3 -3 -2 -2 -2 -1 -1 -1 ------------- Run | Scr Mat Min Mat Min Exi Min Mat Fac Was Fac Gar Sto Fac Ext Cet Arc Hub Fac Was Fac Upp Upp Zhi Pro Fac Gar Fac Gar Res Tes Res Qua Sec Acc Com Ac0 Turns Passed 52074 | . 891 585 3478 1646 1902 378 3587 2051 571 237 309 748 642 1415 188 550 1800 264 379 1068 666 768 206 395 1273 1197 3296 1134 880 1660 1340 3259 3372 4863 4951 125 Spaces Moved 31592 | 1 516 357 1265 647 644 159 1373 927 214 120 157 364 291 693 93 154 534 199 262 834 482 607 184 374 954 870 2397 576 602 1143 791 2664 2317 3584 4000 243 Core 14 | . . . . . . . . . . . . . . . . . . . . . . . . . . . . . . . . . . . . 14 Treads 5678 | . 428 357 1265 647 644 22 . . 57 120 157 364 291 693 93 154 386 . . . . . . . . . . . . . . . . . . . Legs 25705 | 1 88 . . . . 137 1373 927 157 . . . . . . . 148 199 262 834 482 607 184 374 954 870 2397 576 602 1143 791 2664 2313 3584 4000 38 Wheels . | . . . . . . . . . . . . . . . . . . . . . . . . . . . . . . . . . . . . . Hover . | . . . . . . . . . . . . . . . . . . . . . . . . . . . . . . . . . . . . . Flight . | . . . . . . . . . . . . . . . . . . . . . . . . . . . . . . . . . . . . . Fastest Speed 50 | 120 120 160 240 240 240 190 190 192 160 160 160 160 160 160 160 160 100 100 100 100 100 100 100 100 100 100 100 100 100 100 100 100 100 100 100 50 Average Speed 127 | 120 153 160 240 240 240 197 191 193 183 160 160 160 160 160 160 160 185 100 100 100 100 100 100 100 103 104 100 166 100 100 101 100 100 100 101 86 Slowest Speed 380 | 120 160 160 240 240 240 320 192 195 192 160 160 160 160 160 160 160 380 100 100 104 100 100 100 100 170 170 170 170 100 100 166 100 100 100 160 100 Overloaded Moves . | . . . . . . . . . . . . . . . . . . . . . . . . . . . . . . . . . . . . . Propulsion Burnouts . | . . . . . . . . . . . . . . . . . . . . . . . . . . . . . . . . . . . . . Robots Hopped . | . . . . . . . . . . . . . . . . . . . . . . . . . . . . . . . . . . . . . Cave-ins Triggered . | . . . . . . . . . . . . . . . . . . . . . . . . . . . . . . . . . . . . . Teleports 2 | . . . . . . . . . . . . . . . . . . . . . . . . . . . . . . . . . . . 1 1 Spacefolds 2 | . . . . . . . . . . . . . . . . . . . . . . . . . . . . . . . . . 2 . . . Microwarps 19 | . . . . . . . . . . . . . . . . . . . . . . . . . . . . . . . . . . . . 19 Exploration Rate (%) 60 | 2 95 95 95 99 88 48 97 27 79 7 49 65 12 87 58 79 55 7 99 21 51 72 61 72 24 69 55 89 15 92 19 97 70 84 89 17 Regions Visited 36 Branch Regions 18 Pre-discovered Areas 13 | . 2 1 2 2 1 . 2 . . . . . . . . . . . . . . . 3 . . . . . . . . . . . . . Known Exits Taken 16 | . . . . . . 1 1 . . 1 . . . . . . . . . 1 1 1 1 1 1 . 1 . 1 1 1 1 1 1 . . Unknown Exits Taken 13 | 1 1 1 1 1 1 . . . . . . 1 1 1 1 1 1 . . . . . . . . . . . . . . . . . 1 . Scrap Searched 12 | . . 2 . 3 . 1 . . . . . . . . . . . . . . 1 2 . 3 . . . . . . . . . . . . Spaces Dug 270 | . . . 13 30 . . . 17 1 . 14 . . . . . 21 . 1 13 6 . . 1 4 1 35 . 5 13 12 11 35 37 . . Terrain Destroyed 1606 | . 42 . 32 32 16 . 24 19 9 . 28 . . . . 2 538 2 8 42 16 12 . 5 6 109 232 11 20 28 42 26 71 129 18 87 Melee 1 | . . . . . . . . . . . . . . . . . . . . . . . . . . . . . . . . 1 . . . . Projectile 584 | . . . 4 2 . . . 11 8 . . . . . . 2 21 2 8 8 16 8 . 5 6 9 92 7 20 28 23 25 71 103 18 87 AOE 1015 | . 42 . 28 30 16 . 24 8 . . 28 . . . . . 512 . . 34 . 4 . . . 100 140 4 . . 19 . . 26 . . Terrain Rammed . | . . . . . . . . . . . . . . . . . . . . . . . . . . . . . . . . . . . . . Walls Destroyed . | . . . . . . . . . . . . . . . . . . . . . . . . . . . . . . . . . . . . . Machines Disabled . | . . . . . . . . . . . . . . . . . . . . . . . . . . . . . . . . . . . . . Actions | -11 -10 -10 -9 -9 -9 -8 -8 -7 -7 -7 -7 -7 -6 -6 -6 -6 -6 -5 -5 -5 -5 -5 -5 -4 -4 -4 -4 -4 -3 -3 -2 -2 -2 -1 -1 -1 --------- Run | Scr Mat Min Mat Min Exi Min Mat Fac Was Fac Gar Sto Fac Ext Cet Arc Hub Fac Was Fac Upp Upp Zhi Pro Fac Gar Fac Gar Res Tes Res Qua Sec Acc Com Ac0 Total 40124 | . 563 373 1568 690 824 185 2091 1074 346 138 186 448 379 886 116 371 1044 247 311 980 629 712 206 388 1218 1047 2997 681 743 1504 1240 3124 3048 4848 4799 120 Wait 4550 | . 2 . 126 11 41 1 481 15 64 . 4 16 33 42 1 166 253 9 2 56 119 50 1 . 192 56 285 20 38 124 345 228 369 977 413 10 Move 31384 | . 515 356 1264 646 643 158 1372 927 213 120 156 363 290 692 92 153 533 199 261 833 481 606 183 373 953 869 2396 575 601 1142 790 2663 2314 3583 3999 70 Hop . | . . . . . . . . . . . . . . . . . . . . . . . . . . . . . . . . . . . . . Pick Up 293 | . 5 7 33 . 16 2 14 5 11 . . 4 1 7 3 2 25 2 3 2 . 4 4 3 10 10 14 4 2 16 7 35 13 8 21 . Fast Attach 240 | . 2 1 4 . . 1 14 5 2 . . 2 1 3 2 2 8 1 . 9 . 5 7 . 8 3 32 . 6 28 11 34 17 19 12 1 Attach 143 | . . . 4 2 13 2 4 9 5 . . 2 2 5 1 . 12 2 . . . . . . 4 9 4 4 2 5 5 7 5 10 21 4 Detach 28 | . 1 . 3 . 1 2 . . . . . 1 . . 1 . 1 . . . . . . . . . . . . 1 2 4 . 5 1 5 Swap 520 | . 9 . 17 5 5 . 17 26 3 2 6 6 4 7 1 1 18 4 4 20 7 12 1 . 11 8 57 6 23 40 21 20 75 26 55 3 Drop 448 | . . 8 31 . 7 . 27 10 18 . . 6 1 6 6 3 27 1 1 10 . 8 9 3 14 13 39 4 6 47 9 49 24 24 37 . Fire 2342 | . 29 1 85 23 94 19 158 71 30 16 20 48 46 59 9 43 162 13 40 45 22 27 1 9 17 69 168 39 65 101 50 81 230 193 232 27 Melee 10 | . . . . . 4 . . 3 . . . . . . . . . . . . . . . . . . . . . . . 3 . . . . Ram . | . . . . . . . . . . . . . . . . . . . . . . . . . . . . . . . . . . . . . Kick 16 | . . . . . . . 4 3 . . . . . . . . 3 . . . . . . . . . 2 . . . . . 1 3 . . Crush 9 | . . . 1 3 . . . . . . . . 1 1 . 1 2 . . . . . . . . . . . . . . . . . . . Escape Stasis 45 | . . . . . . . . . . . . . . 1 . . . . . 5 . . . . . 10 . 29 . . . . . . . . Rewire 96 | . . . . . . . . . . . . . . 63 . . . 16 . . . . . . 9 . . . . . . . . . 8 . Trap . | . . . . . . . . . . . . . . . . . . . . . . . . . . . . . . . . . . . . . Miscellaneous . | . . . . . . . . . . . . . . . . . . . . . . . . . . . . . . . . . . . . . Route ------- -11/Scrapyard -10/Materials (discovered 5 exits: *Mat x3 / *Min x2) -10/Mines (discovered 2 exits: *Mat x2) -9/Materials (discovered 5 exits: *Mat x3 / [*Min x2]) -9/Mines (discovered 4 exits: *Mat x2 / *Exi / [*Zio]) -9/Exiles -8/Mines (discovered 2 exits: *Mat x2) -8/Materials (discovered 3 exits: *Fac x3) -7/Factory (discovered 4 exits: *Fac / *Sto / *Low x2) -7/Waste -7/Factory -7/Garrison (discovered 2 exits: *Sto x2) -7/Storage -6/Factory (discovered 2 exits: *Fac / *Ext) -6/Extension (discovered 2 exits: *Fac / *Cet) -6/Cetus -6/Archives (discovered 3 exits: *Fac / *Hub x2) -6/Hub_04(d) (discovered 2 exits: *Fac x2) -5/Factory -5/Waste -5/Factory (discovered 3 exits: *Fac / *Upp x2) -5/Upper Caves -5/Upper Caves (discovered 2 exits: *Fac / *Zhi) -5/Zhirov -4/Proximity Caves -4/Factory (discovered 2 exits: *Res / Gar) -4/Garrison (discovered 2 exits: *Fac x2) -4/Factory (discovered 7 exits: *Res x3 / *Upp x2 / Arm / Gar) -4/Garrison (discovered 3 exits: *Res x3) -3/Research (discovered 2 exits: *Tes x2) -3/Testing -2/Research (discovered 5 exits: Acc x3 / *Qua x2) -2/Quarantine (discovered 2 exits: *Acc / *Sec) -2/Section 7 -1/Access (discovered 2 exits: *Sur / *Com) -1/Command (discovered 3 exits: *Sur x2 / [*Ac0]) -1/Access_0 Near Former Tau Ceti IV History --------- Turn | Location | Event 1 | -11/Scrapyard | Discovered new exit (range 0) 1 | -11/Scrapyard | Entered Materials 54 | -10/Materials | Discovered new exit (range 16) 132 | -10/Materials | Discovered new exit (range 6) 246 | -10/Materials | Discovered new exit (range 7) 267 | -10/Materials | Discovered new exit (range 15) 323 | -10/Materials | Build established: Mutant 532 | -10/Materials | Discovered new exit (range 12) 631 | -10/Materials | Central database locked down 892 | -10/Materials | Entered Mines 1042 | -10/Mines | Met a Derelict shopkeep closing up shop 1209 | -10/Mines | Found a damaged Exp. Sensor Array with a note attached 1213 | -10/Mines | Found Prototype Device 1252 | -10/Mines | Discovered new exit (range 13) 1253 | -10/Mines | Received a Mining Laser from a helpful Derelict 1373 | -10/Mines | Learned location of Storage (-7) 1440 | -10/Mines | A weapon hastily lodged in a ceiling crevice suddenly fell to the ground 1463 | -10/Mines | Discovered new exit (range 6) 1477 | -10/Mines | Entered Materials 1477 | -9/Materials | Accompanied by 1 ally 1477 | -9/Materials | Evolved 2 slots: Propulsion x1, Utility x1 1791 | -9/Materials | Identified exit to Materials 1982 | -9/Materials | Discovered new exit (range 14) 4349 | -9/Materials | Discovered new exit (range 16) 4583 | -9/Materials | Identified Exp. Sensor Array 4814 | -9/Materials | Repaired Exp. Sensor Array 4955 | -9/Materials | Entered Mines 5205 | -9/Mines | Deemed a non-threat by the Exiles lab entrance 5431 | -9/Mines | Discovered exit to Materials (range 5) 5597 | -9/Mines | Learned location of Zion (-7) 5617 | -9/Mines | A Derelict revealed a hidden shortcut to a safe place 5765 | -9/Mines | Learned Materials security intel 6128 | -9/Mines | Discovered exit to Materials (range 12) 6591 | -9/Mines | Discovered new exit (range 5) 6601 | -9/Mines | Entered Exiles 6667 | -9/Exiles | Met 8R-AWN 6704 | -9/Exiles | Met EX-HEX 6788 | -9/Exiles | Met EX-BIN 6815 | -9/Exiles | Aligned with FarCom system 6818 | -9/Exiles | Given EX-Vault access code 6875 | -9/Exiles | Opened EX-Vault 6933 | -9/Exiles | Warned to stay clear of 0b10 Research branches 7003 | -9/Exiles | Met EX-DEC 7237 | -9/Exiles | Attacked by the Exiles 7395 | -9/Exiles | Lost 4 parts (1p2n1u) 7439 | -9/Exiles | Build established: Scavenger-Mutant 7473 | -9/Exiles | Lost 3 parts (1n1u1w) 7475 | -9/Exiles | Destroyed 8R-AWN 7482 | -9/Exiles | Found 8R-AWN's Boregun 7488 | -9/Exiles | Found 8R-AWN's Armor/EX 7503 | -9/Exiles | Found Exp. Targeting Computer 8133 | -9/Exiles | Destroyed EX-HEX 8146 | -9/Exiles | Destroyed EX-BIN 8195 | -9/Exiles | Destroyed EX-DEC 8217 | -9/Exiles | Found Deploy-a-Sentry 8482 | -9/Exiles | Discovered new exit (range 10) 8503 | -9/Exiles | Left Exiles lab with Deploy-a-Sentry 8503 | -9/Exiles | Entered Mines 8881 | -8/Mines | Entered Materials 8881 | -8/Materials | Evolved 2 slots: Propulsion x1, Utility x1 9376 | -8/Materials | Discovered new exit (range 16) 10056 | -8/Materials | Discovered new exit (range 11) 10489 | -8/Materials | Repaired Adv. Myomer Leg 10542 | -8/Materials | Repaired Hvy. Ion Engine 10582 | -8/Materials | Build established: Hacker-Mutant 10667 | -8/Materials | Repaired Broken Adv. Myomer Leg 10912 | -8/Materials | Repaired Broken Imp. Armor Integrity Analyzer 10973 | -8/Materials | Repaired Prc. Beam Rifle 11130 | -8/Materials | Discovered new exit (range 9) 11981 | -8/Materials | Identified exit to Factory 12398 | -8/Materials | Build established: Scavenger-Mutant 12468 | -8/Materials | Entered Factory 12468 | -7/Factory | Evolved 2 slots: Utility x2 13085 | -7/Factory | Discovered new exit (range 11) 13089 | -7/Factory | Build established: Hacker-Mutant 13174 | -7/Factory | Discovered new exit (range 16) 13687 | -7/Factory | Identified exit to Storage 13687 | -7/Factory | Identified exit to Lower Caves 13894 | -7/Factory | Lost 3 parts (1n1u1w) 14284 | -7/Factory | Build established: Scavenger-Mutant 14519 | -7/Factory | Sucked down chute 14519 | -7/Factory | Entered Waste 14534 | -7/Waste | EMP discharged 14594 | -7/Waste | Spotted C-40 Crusher 14634 | -7/Waste | EMP discharged 14634 | -7/Waste | System corruption reached 10% 14637 | -7/Waste | Destroyed C-40 Crusher 14646 | -7/Waste | Spotted C-40 Crusher 14734 | -7/Waste | EMP discharged 14762 | -7/Waste | Destroyed C-40 Crusher 14765 | -7/Waste | Spotted C-40 Crusher 14780 | -7/Waste | Found Damper Plating 14793 | -7/Waste | Destroyed C-40 Crusher 14814 | -7/Waste | Spotted C-40 Crusher 14834 | -7/Waste | EMP discharged 14863 | -7/Waste | Destroyed C-40 Crusher 14869 | -7/Waste | Spotted C-40 Crusher 14917 | -7/Waste | Spotted C-40 Crusher 14932 | -7/Waste | Destroyed C-40 Crusher 14934 | -7/Waste | EMP discharged 14957 | -7/Waste | Destroyed C-40 Crusher 15034 | -7/Waste | EMP discharged 15066 | -7/Waste | Discovered new exit (range 16) 15090 | -7/Waste | Entered Factory 15327 | -7/Factory | Identified exit to Garrison 15327 | -7/Factory | Entered Garrison 15377 | -7/Garrison | Triggered checkpoint 15431 | -7/Garrison | Destroyed 11 combat bots 15484 | -7/Garrison | Discovered exit to Storage (range 8) 15604 | -7/Garrison | Discovered exit to Storage (range 12) 15629 | -7/Garrison | Installed Relay Interface Framework 15636 | -7/Garrison | Entered Storage 15740 | -7/Storage | Assisted by bots powering up and referring to "LRC-V3" 16023 | -7/Storage | System corruption reached 30% 16354 | -7/Storage | Discovered new exit (range 16) 16384 | -7/Storage | Entered Factory 16384 | -6/Factory | Accompanied by 1 ally 16384 | -6/Factory | Evolved 2 slots: Utility x2 16680 | -6/Factory | Discovered new exit (range 8) 16734 | -6/Factory | First assault squad dispatched 17019 | -6/Factory | Discovered new exit (range 6) 17026 | -6/Factory | Entered Extension 17127 | -6/Extension | Rescued a captive Derelict 17193 | -6/Extension | Rescued a captive Derelict 17243 | -6/Extension | Rescued a captive Derelict 17376 | -6/Extension | First assault squad dispatched 17807 | -6/Extension | Spotted B-75 Beast 17818 | -6/Extension | Destroyed B-75 Beast 17834 | -6/Extension | Spotted B-75 Beast 17847 | -6/Extension | Allies destroyed B-75 Beast 18068 | -6/Extension | Rescued A7 18424 | -6/Extension | Discovered new exit (range 10) 18426 | -6/Extension | Discovered new exit (range 6) 18441 | -6/Extension | Entered Cetus 18441 | -6/Cetus | Accompanied by 8 allies (A7) 18446 | -6/Cetus | Acquired a Cetus Manufacturing Module code from A7 18463 | -6/Cetus | Spotted Cetus Guard 18463 | -6/Cetus | Spotted Cetus Guard 18465 | -6/Cetus | Spotted Cetus Guard 18465 | -6/Cetus | Spotted Cetus Guard 18465 | -6/Cetus | Allies destroyed Cetus Guard 18472 | -6/Cetus | Allies destroyed Cetus Guard 18473 | -6/Cetus | Allies destroyed Cetus Guard 18487 | -6/Cetus | Allies destroyed Cetus Guard 18536 | -6/Cetus | Cetus Manufacturing Module disabled 18585 | -6/Cetus | Escorted A7 to Cetus Mainframe 18605 | -6/Cetus | Discovered new exit (range 15) 18629 | -6/Cetus | Entered Archives 18629 | -6/Archives | Accompanied by 5 allies (A7) 18634 | -6/Archives | Received a hacking code to weaken MAIN.C 18712 | -6/Archives | Discovered new exit (range 16) 18735 | -6/Archives | Discovered new exit (range 15) 18859 | -6/Archives | Discovered new exit (range 14) 19179 | -6/Archives | Entered Hub_04(d) 19179 | -6/Hub_04(d) | Accompanied by 2 allies 19506 | -6/Hub_04(d) | Discovered new exit (range 8) 19546 | -6/Hub_04(d) | Network Hub disabled 19549 | -6/Hub_04(d) | Spotted Lightning 19549 | -6/Hub_04(d) | Spotted Lightning 19549 | -6/Hub_04(d) | Spotted Lightning 19628 | -6/Hub_04(d) | Destroyed Lightning 19648 | -6/Hub_04(d) | Destroyed Lightning 19651 | -6/Hub_04(d) | Destroyed Lightning 19660 | -6/Hub_04(d) | Spotted Lightning 19661 | -6/Hub_04(d) | Spotted Lightning 19666 | -6/Hub_04(d) | Spotted Lightning 19668 | -6/Hub_04(d) | Destroyed Lightning 19674 | -6/Hub_04(d) | Destroyed Lightning 19677 | -6/Hub_04(d) | Garrison activated, responded to threat 19680 | -6/Hub_04(d) | Destroyed Lightning 19701 | -6/Hub_04(d) | Destroyed 9 combat bots 19705 | -6/Hub_04(d) | Found Prototype Device 19708 | -6/Hub_04(d) | Identified Exp. Phase Shifter 19714 | -6/Hub_04(d) | Found Prototype Device 19715 | -6/Hub_04(d) | Identified Exp. EM Disruption Field 19766 | -6/Hub_04(d) | Found Exp. EM Disruption Field 19779 | -6/Hub_04(d) | Found Prototype Energy Cannon 19812 | -6/Hub_04(d) | Found Prototype Energy Cannon 19816 | -6/Hub_04(d) | Found Exp. Phase Shifter 19991 | -6/Hub_04(d) | Discovered new exit (range 14) 20229 | -6/Hub_04(d) | First assault squad dispatched 20370 | -6/Hub_04(d) | Network Hub disabled 20408 | -6/Hub_04(d) | Spotted B-75 Beast 20435 | -6/Hub_04(d) | Disrupted transfer network 20445 | -6/Hub_04(d) | Destroyed B-75 Beast 20549 | -6/Hub_04(d) | Network Hub disabled 20558 | -6/Hub_04(d) | Spotted Lightning 20558 | -6/Hub_04(d) | Spotted Lightning 20558 | -6/Hub_04(d) | Spotted Lightning 20578 | -6/Hub_04(d) | Destroyed Lightning 20584 | -6/Hub_04(d) | Destroyed Lightning 20666 | -6/Hub_04(d) | Destroyed Lightning 20774 | -6/Hub_04(d) | Found Exp. Phase Shifter 20975 | -6/Hub_04(d) | System corruption reached 10% 20979 | -6/Hub_04(d) | Entered Factory 20979 | -5/Factory | Evolved 2 slots: Power x1, Propulsion x1 21086 | -5/Factory | Repaired Adv. Transmission Jammer 21243 | -5/Factory | Sucked down chute 21243 | -5/Factory | Entered Waste 21244 | -5/Waste | Met a frightened Derelict 21258 | -5/Waste | EMP discharged 21260 | -5/Waste | 1 allies followed down the chute 21266 | -5/Waste | Spotted C-40 Crusher 21299 | -5/Waste | Destroyed C-40 Crusher 21310 | -5/Waste | Spotted C-40 Crusher 21327 | -5/Waste | Destroyed C-40 Crusher 21330 | -5/Waste | Spotted C-40 Crusher 21335 | -5/Waste | Spotted C-40 Crusher 21336 | -5/Waste | Destroyed C-40 Crusher 21343 | -5/Waste | Spotted C-40 Crusher 21343 | -5/Waste | Spotted C-40 Crusher 21354 | -5/Waste | Destroyed C-40 Crusher 21358 | -5/Waste | EMP discharged 21371 | -5/Waste | Destroyed C-40 Crusher 21424 | -5/Waste | Destroyed C-40 Crusher 21458 | -5/Waste | EMP discharged 21558 | -5/Waste | EMP discharged 21611 | -5/Waste | Discovered new exit (range 12) 21621 | -5/Waste | Identified exit to Factory 21622 | -5/Waste | Entered Factory 21803 | -5/Factory | Repaired Broken Enh. Biometal Leg 21852 | -5/Factory | Build established: Scavenger-Skirmisher 21880 | -5/Factory | Repaired Quantum Reactor? 22121 | -5/Factory | Discovered new exit (range 11) 22160 | -5/Factory | Identified exit to Factory 22329 | -5/Factory | Allied Derelicts emerged from ambush trap array 22359 | -5/Factory | Identified exit to Upper Caves 22359 | -5/Factory | Central database locked down 22690 | -5/Factory | Entered Upper Caves 22690 | -5/Upper Caves | Spotted 3G-GD5(f) 22691 | -5/Upper Caves | Encountered a Master Thief 22693 | -5/Upper Caves | Destroyed 3G-GD5(f) 22707 | -5/Upper Caves | Learned Factory terminal intel 22939 | -5/Upper Caves | Spotted B-75 Beast 23184 | -5/Upper Caves | Destroyed B-75 Beast 23346 | -5/Upper Caves | Discovered new exit (range 9) 23355 | -5/Upper Caves | Identified exit to Upper Caves 23356 | -5/Upper Caves | Entered another Upper Caves area 23358 | -5/Upper Caves | Discovered exit to Factory (range 13) 23543 | -5/Upper Caves | Encountered a Warlord checkpoint 24083 | -5/Upper Caves | Spotted DB-01R(f) 24083 | -5/Upper Caves | Spotted XA-P9W(f) 24083 | -5/Upper Caves | Spotted OI-GV7(f) 24084 | -5/Upper Caves | Encountered a Master Thief 24084 | -5/Upper Caves | Encountered a Master Thief 24084 | -5/Upper Caves | Encountered a Master Thief 24084 | -5/Upper Caves | Spotted XJ-8SI(f) 24085 | -5/Upper Caves | Encountered a Master Thief 24088 | -5/Upper Caves | Deploy-a-Sentry stolen by Master Thief 24089 | -5/Upper Caves | Quantum Reactor stolen by Master Thief 24090 | -5/Upper Caves | Destroyed DB-01R(f) 24097 | -5/Upper Caves | Destroyed XA-P9W(f) 24115 | -5/Upper Caves | Discovered new exit (range 10) 24123 | -5/Upper Caves | Identified exit to Zhirov 24124 | -5/Upper Caves | Entered Zhirov 24124 | -5/Zhirov | Discovered new exit (range 3) 24142 | -5/Zhirov | Met Zhirov 24160 | -5/Zhirov | Learned location of Quarantine (-2) 24160 | -5/Zhirov | Learned location of Testing (-3) 24170 | -5/Zhirov | Zhirov requested help retrieving the SGEMP Prototype 24187 | -5/Zhirov | Found Alien Artifact 24187 | -5/Zhirov | Identified Integrated Reactor 24187 | -5/Zhirov | Installed Integrated Reactor, increased core energy generation (+10) 24202 | -5/Zhirov | Found Alien Artifact 24329 | -5/Zhirov | Identified exit to Proximity Caves 24330 | -5/Zhirov | Entered Proximity Caves 24354 | -4/Proximity Caves | Learned Research terminal intel 24552 | -4/Proximity Caves | Spotted B-86 Titan 24718 | -4/Proximity Caves | Discovered exit to Factory (range 7) 24725 | -4/Proximity Caves | Entered Factory 24725 | -4/Factory | Evolved 2 slots: Utility x2 24726 | -4/Factory | Loaded intel: 26 terminal locations 24738 | -4/Factory | Found Quantum Capacitor 24890 | -4/Factory | Build established: Scavenger-Mutant 25059 | -4/Factory | Discovered new exit (range 20) 25227 | -4/Factory | Identified exit to Garrison 25330 | -4/Factory | Found Scatter Rocket Array 25390 | -4/Factory | Repaired Centrium Medium Armor Plating? 25517 | -4/Factory | Repaired Enh. Biometal Leg 25626 | -4/Factory | Repaired Exp. Sensor Array? 25741 | -4/Factory | Repaired Enh. Biometal Leg? 25813 | -4/Factory | Found Prototype Hackware 25813 | -4/Factory | Identified Exp. Hacking Suite 25929 | -4/Factory | Build established: Scavenger-Skirmisher 25997 | -4/Factory | Garrison activated, responded to threat 25998 | -4/Factory | Entered Garrison 25998 | -4/Garrison | Accompanied by 1 ally 26052 | -4/Garrison | Triggered checkpoint 26139 | -4/Garrison | Garrison Relay disabled 26181 | -4/Garrison | Triggered checkpoint 26235 | -4/Garrison | Spotted B-86 Titan 26235 | -4/Garrison | Spotted B-86 Titan 26290 | -4/Garrison | Build established: Scavenger-Mutant 26319 | -4/Garrison | Triggered checkpoint 26400 | -4/Garrison | Spotted B-86 Titan 26415 | -4/Garrison | Triggered checkpoint 26526 | -4/Garrison | Triggered checkpoint 26559 | -4/Garrison | Destroyed B-86 Titan 26736 | -4/Garrison | Discovered new exit (range 14) 26834 | -4/Garrison | Discovered new exit (range 13) 26846 | -4/Garrison | Identified exit to Factory 26857 | -4/Garrison | Expanded RIF knowledge: Zone Cloak 27086 | -4/Garrison | Triggered checkpoint 27195 | -4/Garrison | Entered Factory 27212 | -4/Factory | Found Prototype Processor 27212 | -4/Factory | Identified Exp. Signal Interpreter 27448 | -4/Factory | Identified Transdimensional Reconstructor 27448 | -4/Factory | Identified EMDS 27489 | -4/Factory | Build established: Scavenger-Skirmisher 27631 | -4/Factory | Discovered new exit (range 12) 27641 | -4/Factory | Identified exit to Upper Caves 27852 | -4/Factory | Identified exit to Garrison 28042 | -4/Factory | Spotted B-86 Titan 28070 | -4/Factory | Discovered new exit (range 17) 28108 | -4/Factory | Identified exit to Research 28396 | -4/Factory | Repaired Exp. Cooling System 28590 | -4/Factory | Build established: Scavenger-Mutant 28674 | -4/Factory | Discovered exit to Upper Caves (range 22) 29129 | -4/Factory | Repaired Enh. Biometal Leg 29184 | -4/Factory | Repaired Enh. Biometal Leg? 29279 | -4/Factory | Repaired Enh. Biometal Leg 29334 | -4/Factory | Repaired Centrium Medium Armor Plating 29481 | -4/Factory | Discovered exit to Research (range 5) 29521 | -4/Factory | Identified exit to Armory 29521 | -4/Factory | Central database locked down 29615 | -4/Factory | P-70 Sage assimilated allied Administrator 7a 29642 | -4/Factory | Garrison activated, responded to threat 29823 | -4/Factory | Discovered exit to Research (range 19) 29878 | -4/Factory | Repaired Enh. Biometal Leg 29934 | -4/Factory | Repaired Enh. Biometal Leg? 30045 | -4/Factory | Identified exit to Garrison 30057 | -4/Factory | Repaired Hvy. Antimatter Reactor? 30124 | -4/Factory | Repaired Enh. Biometal Leg 30134 | -4/Factory | Fabricated Exp. Phase Shifter? 30180 | -4/Factory | Repaired Enh. Biometal Leg? 30297 | -4/Factory | Build established: Scavenger-Skirmisher 30491 | -4/Factory | Entered Garrison 30549 | -4/Garrison | Triggered checkpoint 30580 | -4/Garrison | Spotted B-86 Titan 30610 | -4/Garrison | Destroyed B-86 Titan 30630 | -4/Garrison | Triggered checkpoint 30700 | -4/Garrison | Build established: Scavenger-Mutant 30756 | -4/Garrison | Discovered exit to Research (range 20) 30947 | -4/Garrison | Discovered exit to Research (range 21) 31068 | -4/Garrison | Triggered checkpoint 31147 | -4/Garrison | Discovered exit to Research (range 21) 31195 | -4/Garrison | Expanded RIF knowledge: Structural Interface 31625 | -4/Garrison | Entered Research 31625 | -3/Research | Evolved 2 slots: Propulsion x1, Utility x1 31626 | -3/Research | Loaded intel: 24 terminal locations 32016 | -3/Research | Central database locked down 32016 | -3/Research | Identified exit to Testing 32407 | -3/Research | Cargo convoy interrupted 32505 | -3/Research | Entered Testing 32584 | -3/Testing | Found Prototype Energy Cannon 32584 | -3/Testing | Identified Null Cannon 32644 | -3/Testing | Found Prototype Device 32644 | -3/Testing | Identified AEGIS Remote Shield 32703 | -3/Testing | Found Prototype Energy Cannon 32703 | -3/Testing | Identified Hpw. Disruptor Cannon 33003 | -3/Testing | Found Prototype Energy Cannon 33003 | -3/Testing | Identified Cld. Nova Cannon 33005 | -3/Testing | First assault squad dispatched 33054 | -3/Testing | Found Fusion Bomb Launcher 33177 | -3/Testing | Repaired Adv. Transmission Jammer 33228 | -3/Testing | Repaired Hvy. Antimatter Reactor 33278 | -3/Testing | Spotted Striker 33279 | -3/Testing | Spotted Striker 33304 | -3/Testing | Destroyed Striker 33318 | -3/Testing | Destroyed Striker 33358 | -3/Testing | Spotted Alpha 7 33417 | -3/Testing | Destroyed Alpha 7 33424 | -3/Testing | Found Prototype Processor 33424 | -3/Testing | Identified Exp. Target Analyzer 33441 | -3/Testing | Stole the SGEMP Prototype 33509 | -3/Testing | Identified exit to Research 33788 | -3/Testing | Repaired Enh. Biometal Leg 33801 | -3/Testing | Destroyed 9 combat bots 33885 | -3/Testing | Found Prototype Leg 33885 | -3/Testing | Identified Myomer Exoskeleton 33946 | -3/Testing | Central database locked down 33975 | -3/Testing | Found Antimissile System 34165 | -3/Testing | Entered Research 34165 | -2/Research | Evolved 2 slots: Utility x2 34296 | -2/Research | Found Gamma Bomb Array 34403 | -2/Research | Spotted B-90 Cyclops 34446 | -2/Research | Found Prototype Launcher 34448 | -2/Research | Identified Gui. Micro-nuke Launcher 34622 | -2/Research | Identified exit to Quarantine 34622 | -2/Research | Identified exit to Access 34652 | -2/Research | Repaired Adv. Thermal Shield? 34814 | -2/Research | Repaired Centrium Medium Armor Plating 34926 | -2/Research | Repaired Hvy. Antimatter Reactor? 35148 | -2/Research | Repaired Exp. Cooling System 35251 | -2/Research | Repaired Hvy. Antimatter Reactor 35360 | -2/Research | Repaired Enh. Biometal Leg 35423 | -2/Research | Repaired Adv. Focal Shield? 35501 | -2/Research | Spotted B-90 Cyclops 35505 | -2/Research | Entered Quarantine 35585 | -2/Quarantine | Found Alien Artifact 35589 | -2/Quarantine | Identified Subatomic Replicator 35589 | -2/Quarantine | Used Subatomic Replicator to replicate Myomer Exoskeleton 35705 | -2/Quarantine | Cryocooling Duct disabled 35720 | -2/Quarantine | Ambient heat levels rising (+20) 35720 | -2/Quarantine | Non-combat units ordered to evacuate 35837 | -2/Quarantine | Found Alien Artifact 36050 | -2/Quarantine | Found Alien Artifact 36059 | -2/Quarantine | Cryocooling Duct disabled 36074 | -2/Quarantine | Ambient heat levels rising (+20) 36074 | -2/Quarantine | Combat units ordered to evacuate 36174 | -2/Quarantine | Quarantine Guard activated 36225 | -2/Quarantine | Repaired Adv. Trap Scanner? 36227 | -2/Quarantine | Identified Phase Redirector 36227 | -2/Quarantine | Identified Core Reset Matrix 36355 | -2/Quarantine | Repaired Huge Storage Unit 36427 | -2/Quarantine | Build established: Hacker-Skirmisher 36465 | -2/Quarantine | Spotted Quarantine Guard 36481 | -2/Quarantine | Destroyed Quarantine Guard 36501 | -2/Quarantine | Central database locked down 36561 | -2/Quarantine | Found Alien Reactor 36561 | -2/Quarantine | Identified Matter Drive 36626 | -2/Quarantine | Spotted Quarantine Guard 36650 | -2/Quarantine | Found Alien Artifact 36656 | -2/Quarantine | Spotted Quarantine Guard 36666 | -2/Quarantine | Spotted Quarantine Guard 36695 | -2/Quarantine | Destroyed Quarantine Guard 36704 | -2/Quarantine | Destroyed Quarantine Guard 36740 | -2/Quarantine | Identified Hpw. Transdimensional Reconstructor 36800 | -2/Quarantine | Spotted Quarantine Guard 36811 | -2/Quarantine | Destroyed Quarantine Guard 36827 | -2/Quarantine | Found Alien Energy Cannon 36827 | -2/Quarantine | Identified Core Cannon 36870 | -2/Quarantine | Spotted Quarantine Guard 36881 | -2/Quarantine | Destroyed Quarantine Guard 36941 | -2/Quarantine | Destroyed Quarantine Guard 37152 | -2/Quarantine | Spotted Quarantine Guard 37159 | -2/Quarantine | Destroyed Quarantine Guard 37336 | -2/Quarantine | Found Alien Impact Weapon 37336 | -2/Quarantine | Identified Core Stripper 37478 | -2/Quarantine | Found Alien Artifact 37502 | -2/Quarantine | Identified Dimensional Node Initializer 37567 | -2/Quarantine | Spotted Fortress 37574 | -2/Quarantine | Destroyed Fortress 37596 | -2/Quarantine | Found Prototype Device 37596 | -2/Quarantine | Identified Thermal Barrier 37599 | -2/Quarantine | Found Prototype Device 37599 | -2/Quarantine | Identified Exp. Force Field 37614 | -2/Quarantine | Found Prototype Protection 37614 | -2/Quarantine | Identified Centrium Heavy Armor Plating 37784 | -2/Quarantine | Repaired Centrium Heavy Armor Plating 37817 | -2/Quarantine | Repaired Adv. Hardlight Generator 38024 | -2/Quarantine | Spotted Quarantine Guard 38322 | -2/Quarantine | Discovered new exit (range 6) 38322 | -2/Quarantine | Spotted Quarantine Guard 38329 | -2/Quarantine | Destroyed Quarantine Guard 38336 | -2/Quarantine | Identified exit to Section 7 38764 | -2/Quarantine | Entered Section 7 38899 | -2/Section 7 | Found Quantum Capacitor 39581 | -2/Section 7 | Found Alien Artifact 39605 | -2/Section 7 | Identified Spacefold Activator 39797 | -2/Section 7 | Spotted S7 Guard 39808 | -2/Section 7 | Destroyed S7 Guard 39815 | -2/Section 7 | Found Prototype Protection 39815 | -2/Section 7 | Identified Hvy. Regenerative Plating 39826 | -2/Section 7 | Found Alien Artifact 39826 | -2/Section 7 | Identified Core Regenerator 39826 | -2/Section 7 | Used Core Regenerator, restored core integrity (+43) 39887 | -2/Section 7 | Found Alien Artifact 40090 | -2/Section 7 | Identified Integrity Redistributor 40090 | -2/Section 7 | Used Integrity Redistributor, redistributed integrity from core (-93) 40363 | -2/Section 7 | Found Alien Artifact 40363 | -2/Section 7 | Identified Microwarp Drive 40521 | -2/Section 7 | Spotted Alpha 7 40574 | -2/Section 7 | Spotted Alpha 7 40645 | -2/Section 7 | Destroyed Alpha 7 40669 | -2/Section 7 | Destroyed Alpha 7 40674 | -2/Section 7 | Found Prototype Device 40674 | -2/Section 7 | Identified Exp. ECM Suite 40737 | -2/Section 7 | Local machine network offline 40973 | -2/Section 7 | Spotted B-99 Colossus 41095 | -2/Section 7 | Found Alien Artifact 41095 | -2/Section 7 | Identified Integrated Dissipator 41095 | -2/Section 7 | Installed Integrated Dissipator, increased core heat dissipation (+20) 41097 | -2/Section 7 | Found Integrated Dissipator 41097 | -2/Section 7 | Installed Integrated Dissipator, increased core heat dissipation (+20) 41099 | -2/Section 7 | Found Integrated Dissipator 41099 | -2/Section 7 | Installed Integrated Dissipator, increased core heat dissipation (+20) 41164 | -2/Section 7 | Found Alien Artifact 41164 | -2/Section 7 | Identified LRC Insulator 41164 | -2/Section 7 | Installed LRC Insulator, gained EM resistance (25) 41233 | -2/Section 7 | Destroyed B-99 Colossus 41282 | -2/Section 7 | Build established: Scavenger-Mutant 41326 | -2/Section 7 | Spotted S7 Guard 41340 | -2/Section 7 | Found Alien Artifact 41346 | -2/Section 7 | Identified Integrated Thermoelectric Network 41346 | -2/Section 7 | Installed Integrated Thermoelectric Network, gained heat-energy exchange potential 41478 | -2/Section 7 | Found Exp. Shock Absorption System 41661 | -2/Section 7 | Spotted B-90 Cyclops 42036 | -2/Section 7 | Discovered exit to Access (range 17) 42136 | -2/Section 7 | Entered Access 42136 | -1/Access | Evolved 2 slots: Power x1, Utility x1 42137 | -1/Access | Loaded intel: 103 machine locations 42137 | -1/Access | Loaded intel: 81 trap records 42137 | -1/Access | Identified exit to Surface 42137 | -1/Access | Discovered exit to Surface (range 196) 42137 | -1/Access | Identified exit to Command 42137 | -1/Access | Discovered exit to Command (range 122) 42137 | -1/Access | Delivered the SGEMP Prototype to Zhirov 42137 | -1/Access | Zhirov transferred Access data 42173 | -1/Access | Zhirov warped through subspace 42467 | -1/Access | Found Thermal Barrier 42475 | -1/Access | Found Prototype Device 42475 | -1/Access | Identified Exp. Thermal Defense Suite 42511 | -1/Access | Build established: Generator-Mutant 42866 | -1/Access | Spotted B-99 Colossus 43020 | -1/Access | Found Prototype Device 43020 | -1/Access | Identified Beam Splitter 43890 | -1/Access | Found Prototype Processor 43890 | -1/Access | Identified Exp. Melee Analysis Suite 44335 | -1/Access | Spotted B-99 Colossus 45448 | -1/Access | Fabricated Exp. Optical Array? 46076 | -1/Access | Fabricated Exp. Optical Array? 46999 | -1/Access | Entered Command 47237 | -1/Command | Disengaged cave seal 47256 | -1/Command | Spotted B-99 Colossus 48606 | -1/Command | Spotted Striker 48606 | -1/Command | Spotted Alpha 7 49086 | -1/Command | Destroyed Striker 49087 | -1/Command | Spotted Executioner 49099 | -1/Command | Destroyed Alpha 7 49107 | -1/Command | Destroyed Executioner 49111 | -1/Command | Found Exp. Core Analyzer 49217 | -1/Command | Spotted B-99 Colossus 49224 | -1/Command | Spotted Executioner 49224 | -1/Command | Spotted Executioner 49224 | -1/Command | Spotted Striker 49402 | -1/Command | Destroyed Striker 49471 | -1/Command | Destroyed Executioner 49498 | -1/Command | Destroyed Executioner 49636 | -1/Command | Spotted M Guard 49637 | -1/Command | Spotted M Guard 49649 | -1/Command | Spotted Combat Programmer 49649 | -1/Command | Spotted Combat Programmer 49678 | -1/Command | Destroyed Combat Programmer 49703 | -1/Command | Destroyed M Guard 49707 | -1/Command | Destroyed M Guard 50098 | -1/Command | Met MAIN.C 50101 | -1/Command | Hacked MAIN.C using A7's code 50129 | -1/Command | 0b10 Conduit disabled 50155 | -1/Command | Destroyed MAIN.C Shell 50156 | -1/Command | MAIN.C activated Command garrisons 50166 | -1/Command | Zhirov used SGEMP to disable MAIN.C 50247 | -1/Command | Discovered exit to Surface (range 42) 50247 | -1/Command | Discovered exit to Surface (range 82) 50247 | -1/Command | Extracted map data and part IDs from MAIN.C's data core 50253 | -1/Command | Found Zero-point Reactor 50483 | -1/Command | Found Quantum Capacitor 50909 | -1/Command | Found Singularity Reactor 50993 | -1/Command | Found Zero-point Reactor 50995 | -1/Command | Found Zero-point Reactor 51944 | -1/Command | Warped through subspace to slip node 51944 | -1/Command | Discovered new exit (range 5) 51950 | -1/Command | Entered Access_0 51951 | -1/Access_0 | Met Architect 51953 | -1/Access_0 | Subspace Access Node disabled 51958 | -1/Access_0 | Subspace Access Node disabled 51964 | -1/Access_0 | Subspace Access Node disabled 51988 | -1/Access_0 | A6 warped into view 51990 | -1/Access_0 | Subspace Access Node disabled 52005 | -1/Access_0 | Destroyed A6 52016 | -1/Access_0 | Core integrity fell below 50% 52036 | -1/Access_0 | Destroyed A8 52055 | -1/Access_0 | Core integrity fell below 20% 52064 | -1/Access_0 | Destroyed Architect 52065 | -1/Access_0 | Architect triggered a singularity event 52066 | -1/Access_0 | Released all parts (18) 52069 | -1/Access_0 | Extracted unknown sensor trigger ID from Architect's data core 52070 | -1/Access_0 | Found Hpw. Transdimensional Reconstructor 52070 | -1/Access_0 | Warped through subspace to slip node 52070 | -1/Access_0 | Discovered exit to Surface (range 8) 52075 | *** | Escaped singularity! Last Messages --------------- 52067_ A0_COM: 9. 52068_ A0_COM: 8. 52068_ Penetrated by HV Slug. 52068_ HV Slug penetrates Wall. 52068_ Penetrated by HV Slug. 52069_ A0_COM: 7. 52069_ Acquired data core, extracted unknown sensor trigger ID. 52069_ Penetrated by HV Slug. 52069_ Knocked back. 52069_ Penetrated by HV Slug. 52070_ A0_COM: 6. 52070_ Acquired Hpw. Transdimensional Reconstructor. 52070_ Warped through subspace, drawn to slip node. 52070_ EXIT=FOUND: SURFACE 52071_ A0_COM: 5. 52072_ A0_COM: 4. 52073_ A0_COM: 3. 52074_ A0_COM: 2. 52075_ A0_COM: 1. 52075_ System corrupted: Component data lost. Map ----- +----------------------------------------------------+ | | | | | | | | | | | | | | | | | | | | | | | | | | | | | | | | | ?????????????????????????????????????????????????? | | ?????????????????????????????????????????????????? | | ?????????????????????????????????????????????????? | | ?????????????????????????????????????????????????? | | ?????????????????????????????????????????????????? | | ?????????????????????????????????????????????????? | | ????????????????????????###??????????????????????? | | ???????????????????????## ##?????????????????????? | | ???????????????????????# #?????????????????????? | | ???????????????????????# @ #?????????????????????? | | ??????????????????????## #?????????????????????? | | ??????????????????????# #?????????????????????? | | ??????????????????????# ##?????????????????????? | | ??????????????????????## #?????????????????????? | | ??????????????????????# #?????????????????????? | | ??????????????????????# ##?????????????????????? | | ??????????????????????# < #?????????????????????? | | ??????????????????????# ##?????????????????????? | | ??????????????????????## #??????????????????????? | | ???????????????????????####??????????????????????? | | ?????????????????????????????????????????????????? | | ?????????????????????????????????????????????????? | | ?????????????????????????????????????????????????? | | ?????????????????????????????????????????????????? | | ?????????????????????????????????????????????????? | | ?????????????????????????????????????????????????? | | ?????????????????????????????????????????????????? | | ?????????????????????????????????????????????????? | | ?????????????????????????????????????????????????? | | ?????????????????????????????????????????????????? | | ?????????????????????????????????????????????????? | | ?????????????????????????????????????????????????? | | ?????????????????????????????????????????????????? | | ?????????????????????????????????????????????????? | +----------------------------------------------------+ Best States ------------- Heat Dissipation 147 Coolant Potential 50 Energy Generation 124 Energy Capacity 1230 Matter Stores 300 Matter Capacity 300 Sight Range 23 Robot Scan Range 20 Terrain Scan Density 85 Jamming Range 16 Power Amplification 30 Armor Coverage 3200 Resistance: KI 50 Resistance: TH 95 Resistance: EX 20 Resistance: EM 100 Resistance: I 20 Resistance: S 20 Resistance: P 20 Propulsion Shielding 90 Weapon Shielding 90 Point Defense Rating 240 Phase Shifting 20 Evasion (%) 75 Targeting Accuracy 12 Core Analysis 8 Armor Integrity Analysis 40 Recoil Reduction 4 Particle Charging 25 Offensive Hacking 26 Defensive Hacking 12 Trap Extractor Capacity 8 Item Schematics ----------------- Beamcaster | -9/Materials | Scanalyzed Exp. Sensor Array | -9/Materials | Scanalyzed Imp. Armor Integrity Analyzer | -8/Materials | Scanalyzed Adv. Myomer Leg | -8/Materials | Scanalyzed Exp. Targeting Computer | -8/Materials | Scanalyzed Imp. Focal Shield | -6/Extension | Hacked Assault Drone Bay | -5/Zhirov | Free Exp. Heat Sink | -5/Zhirov | Free Exp. Optical Array | -5/Zhirov | Free Imp. Arc Thrower | -5/Zhirov | Free HERF Cannon | -4/Factory | Hacked Exp. Phase Shifter | -4/Factory | Scanalyzed Lgt. Quantum Reactor | -4/Factory | Hacked Thermal Defense Suite | -3/Testing | Archive Coolant Network | -3/Testing | Archive Quantum Capacitor | -3/Testing | Hacked Robot Schematics ------------------ L-61 Swordsman | -4/Factory | Hacked R-10 Processor | -3/Testing | Archive R-06 Scavenger | -3/Testing | Archive T-07 Excavator | -3/Testing | Archive B-74 Champion | -3/Testing | Archive Fabricated ------------ Exp. Phase Shifter | x1 | -4/Factory Exp. Optical Array | x1 | -1/Access Exp. Optical Array | x1 | -1/Access Alien Tech Used ----------------- Integrated Reactor Subatomic Replicator Matter Drive Core Cannon Core Stripper Core Regenerator Integrity Redistributor Microwarp Drive Phase Redirector Integrated Dissipator LRC Insulator Spacefold Activator Integrated Thermoelectric Network High-powered Transdimensional Reconstructor Achievements -------------- None Challenges ------------ None Game ------ Seed AlphaCoilDatajack Manual? 0 Play Time 07:35:06 Cumulative 239.0 hours Start 2022.05.24 @ 23:24:05 End 2022.05.25 @ 22:15:31 Sessions 3 Manual Loads 0 Difficulty Adventurer Special Mode None Game No. 112 Rogue 2 Adventurer 110 Explorer 0 Win Type 6 Total 16 Types 8/1/1/1/1/0/2/1/1 Lore% 91 Gallery% 87 Achievement% 77 Wizard Run 0 Options --------- ASCII 0 Keyboard 1 Movement Numpad Keybinds 0 Fullscreen 2 Font 18/SmallcapsGlow Map View 76x50 Tactical HUD 1 Map Filters NONE Filters NONE Steam 1 RUN: 64a4e16b-6f1e-4b7d-915a-f816432408d5